Workbook

Sheet Instructions
A1: PAMS - Portfolio Analysis and Management System
A3: Budget Template Instructions
A4: Budgets are required for the entire project period. A budget template should be completed for each budget period of the award, and a cumulative budget form for the entire project period will be populated. A detailed budget justification narrative should be included after the budget pages. The justification should cover labor, domestic and foreign travel, equipment, materials and supplies, and anything else that will be covered with project funds.
A6: · Budget Period 1 – Budget Period 5 Tabs: Tabs represent budget for each period.
A7: · Budget Summary Tab: Provides a cumulative amount of all budget periods and is populated.
A8: COMPLETE FIELDS HIGHLIGHTED IN BLUE
A10: Budget Period Information:
A11: Note: The budget submitted by the primary applicant must include all costs associated with the award.
A13: · Start Date and End Date: Enter the proposed start date and end date of the budget period.
A15: A. Senior/Key Person (Required):
A16: · Name: Enter the Last Name, First Name (ex: Smith, John) of each Senior/Key Person.
A17: · Project Role: Enter the project role of each Senior/Key Person (Principal Investigator, Co-Investigator, Project Manager Senior Researcher, etc.)
A18: · Job Category and Job Title: Select the appropriate job category and job title from each list, to look up the Band and Standard Labor Rate (includes OPTO and Vacation).
A19: · Hours: Enter the hours to be worked for each Job Title (1768 is full time for a year).
A20: · Months: Will populate based on hours
A21: · Requested Salary ($): Will populate based on Standard Labor Rate and hours.
A22: · Fringe Benefits ($): Will populate based on the predefined rate of 31%, see cell G9.
A23: · Funds Requested ($): This amount will be populated (Requested Salary + Fringe Benefits).
A24: · Total Senior/Key Person: This amount will be calculated by PAMS.
A25: · SWF Type: This field defaults to Division Staff to apply the Program Support indirect rate (in section H). The Section Staff option is available for personnel that receive Common Site Support.
A27: B. Other Personnel:
A28: · Enter “Other Personnel” budget information, using the instructions for “Senior/Key Person” as guidelines. Other Personnel are identified by Project Role, instead of Name.
A29: · # of Personnel: Enter number of personnel for each Project Role
A30: · Project Role (to group): Select the Project Role, to summarize personnel into pre-identified roles, including Post Doctorate Associates, Graduate Students, Undergraduate Students, Secretarial/Clerical, Engineers, and Technicians. Engineers identified in this section are those who provide engineering project support and not research performance.
A31: · Fringe Benefits ($): Will populate based on the predefined rate of 31% (cell G9), and 25% for Post Doctoral Associates (cell G10)
A32: · Total Salary, Wages and Fringe Benefits (A+B): This amount will be calculated by PAMS.
A34: C. Equipment Description:
A35: · Item: Enter each equipment item type and quantity.
A36: · Funds Requested ($): List the estimated cost of each item of equipment including shipping and any maintenance costs including maintenance agreements.
A37: · Total Equipment: This amount will be calculated by PAMS.
A39: D. Travel:
A40: · Domestic Travel Costs: Domestic travel includes Canada, Mexico and US Territories/Possessions.
A41: · Funds Requested ($): Enter total funds requested for domestic travel.
A42: · Foreign Travel Costs: Foreign travel includes any travel outside of North America and/or US Territories/Possessions. Foreign travel may be approved only if it is directly related to project objectives.
A43: · Funds Requested ($): Enter total funds requested for foreign travel.
A44: · Total Travel: This amount will be calculated by PAMS.
A46: E. Participant/Trainee Support Costs:
A47: · Tuition/Fees/Health Insurance, Stipends, Travel, Subsistence, and Other Costs: If applicable for trainees, enter costs in Funds Requested field.
A48: · Number of Participants/Trainees: Enter the number of participants or trainees.
A49: · Total Participant/Trainee Support Costs: This amount will be calculated by PAMS.
A51: F. Other Direct Costs:
A52: Enter Other Direct Costs information for each item listed.
A53: · Materials and Supplies: Enter total funds requested for materials and supplies in the appropriate fields.
A54: · Publication Costs: Enter the total publication funds requested.
A55: · Consultant Services: Enter total funds requested for all consultant services.
A56: · ADP/Computer Services: Enter total funds requested for ADP/Computer Services.
A57: · Subawards/Consortium/Contractual Costs: Enter total costs by subaward type for subawards/consortium organizations and other contractual costs proposed for the project. Indirect rates (section H) will be applied based on the subaward type.
A58: · Equipment or Facility Rental/User Fees: Enter total funds requested for Equipment or Facility Rental/User Fees.
A59: · Alterations and Renovations: Enter total funds requested for Alterations and Renovations.
A60: · Other: Add text to describe any other Direct Costs not requested above. Enter costs associated with “Other” item(s).
A61: · Total Other Direct Costs: This amount will be calculated by PAMS.
A63: G. Direct Costs:
A64: This represents Total Direct Costs (Sections A thru F) and will be calculated by PAMS.
A66: H. Other Indirect Costs:
A67: Enter the Indirect Cost information for each field. Only four general categories of indirect costs are allowed/requested on this form, so please consolidate if needed.
A68: · Item: Indicate the type of base; e.g., Salary & Wages, Modified Total Direct Costs, Other (explain). If more than one rate/base is involved, use separate lines for each. The 3 most common rates have been populated.
A69: · Funds Requested ($): Populated based on Indirect Rates.
A70: · Total Other Indirect Costs: This amount will be calculated by PAMS.
A72: I. Total Direct and Indirect Costs:
A73: This amount will be calculated by PAMS (Sections G + H)
A75: Budget Justification:
A76: Include a budget justification that provides additional information requested in each budget category identified above and any other information you wish to submit to support your budget request.
A78: This includes supporting information for equipment; domestic and foreign travel; participant/trainees; material and supplies; publication; consultant services; ADP/computer services; subaward/consortium/contractual; equipment or facility rental/user fees; alterations and renovations; and indirect cost type. Provide any other information you wish to justify your budget request.

Sheet Budget Period #1
B1: DOE National Laboratory Announcement
B2: Proposal Title
B3: Note: The budget submitted by the primary applicant must include all costs associated with the award.
B4: Budget Period Information
B6: Budget Period Start Date | E6: (per Program Announcement Guidelines) | J6: Selecting Job Category and Title will populate Band, Rate, and Project Role
B7: Budget Period End Date | E7: (per Program Announcement Guidelines) | J7: Adding hours will populate Months, Requested Salary, Fringe Benefits, and Funds Requested
J8: Options: Rate can be selected by band only. Project role can be customized.
B9: A. Senior/Key Person (required): | F9: Fringe Rate: | G9: =Rates!B6 -> 0.2975
F10: Fringe PostDoc: | G10: =Rates!B7 -> 0.2375 | J10: Labor Calculations (SLRs)
B12: Name | D12: Project Role | E12: Months | F12: Requested Salary ($) | G12: Fringe Benefits | H12: Funds Requested | J12: Category | K12: Job Title | L12: Band | M12: SLR + VO | N12: Hours | P12: SWF Type (for OH)
A13: 1.) | E13: =N13/(Rates!$B$22/12) -> 0 | F13: =ROUND(M13*N13,2) -> 0 | G13: =ROUND(F13*$G$9,2) -> 0 | H13: =F13+G13 -> 0 | J13: Engineers | K13: Senior Engineer | L13: =IFERROR(VLOOKUP($K13,'Quick Lookup'!$C$3:$D$40,2,FALSE),"") -> E5 | M13: =SUMIF(SLRs!$B$2:$B$21,'Budget Period #1'!$L13,SLRs!$F$2:$F$21) -> 71.0875 | P13: Division Staff
A14: 2.) | E14: =N14/(Rates!$B$22/12) -> 0 | F14: =ROUND(M14*N14,2) -> 0 | G14: 0 | H14: 0 | L14: =IFERROR(VLOOKUP($K14,'Quick Lookup'!$C$3:$D$40,2,FALSE),"") ->  | M14: =SUMIF(SLRs!$B$2:$B$21,'Budget Period #1'!$L14,SLRs!$F$2:$F$21) -> 0 | P14: Division Staff
A15: 3.) | E15: =N15/(Rates!$B$22/12) -> 0 | F15: 0 | G15: 0 | H15: 0 | L15: =IFERROR(VLOOKUP($K15,'Quick Lookup'!$C$3:$D$40,2,FALSE),"") ->  | M15: =SUMIF(SLRs!$B$2:$B$21,'Budget Period #1'!$L15,SLRs!$F$2:$F$21) -> 0 | P15: Division Staff
A16: 4.) | E16: =N16/(Rates!$B$22/12) -> 0 | F16: 0 | G16: 0 | H16: 0 | L16: =IFERROR(VLOOKUP($K16,'Quick Lookup'!$C$3:$D$40,2,FALSE),"") ->  | M16: =SUMIF(SLRs!$B$2:$B$21,'Budget Period #1'!$L16,SLRs!$F$2:$F$21) -> 0 | P16: Division Staff
A17: 5.) | E17: =N17/(Rates!$B$22/12) -> 0 | F17: 0 | G17: 0 | H17: 0 | L17: =IFERROR(VLOOKUP($K17,'Quick Lookup'!$C$3:$D$40,2,FALSE),"") ->  | M17: =SUMIF(SLRs!$B$2:$B$21,'Budget Period #1'!$L17,SLRs!$F$2:$F$21) -> 0 | P17: Division Staff
A18: 6.) | E18: =N18/(Rates!$B$22/12) -> 0 | F18: 0 | G18: 0 | H18: 0 | L18: =IFERROR(VLOOKUP($K18,'Quick Lookup'!$C$3:$D$40,2,FALSE),"") ->  | M18: =SUMIF(SLRs!$B$2:$B$21,'Budget Period #1'!$L18,SLRs!$F$2:$F$21) -> 0 | P18: Division Staff
A19: 7.) | E19: =N19/(Rates!$B$22/12) -> 0 | F19: 0 | G19: 0 | H19: 0 | L19: =IFERROR(VLOOKUP($K19,'Quick Lookup'!$C$3:$D$40,2,FALSE),"") ->  | M19: =SUMIF(SLRs!$B$2:$B$21,'Budget Period #1'!$L19,SLRs!$F$2:$F$21) -> 0 | P19: Division Staff
A20: 8.) | E20: =N20/(Rates!$B$22/12) -> 0 | F20: 0 | G20: 0 | H20: 0 | L20: =IFERROR(VLOOKUP($K20,'Quick Lookup'!$C$3:$D$40,2,FALSE),"") ->  | M20: =SUMIF(SLRs!$B$2:$B$21,'Budget Period #1'!$L20,SLRs!$F$2:$F$21) -> 0 | P20: Division Staff
A21: 9.) | E21: =N21/(Rates!$B$22/12) -> 0 | F21: 0 | G21: 0 | H21: 0 | L21: =IFERROR(VLOOKUP($K21,'Quick Lookup'!$C$3:$D$40,2,FALSE),"") ->  | M21: =SUMIF(SLRs!$B$2:$B$21,'Budget Period #1'!$L21,SLRs!$F$2:$F$21) -> 0 | P21: Division Staff
A22: 10.) | E22: =N22/(Rates!$B$22/12) -> 0 | F22: 0 | G22: 0 | H22: 0 | L22: =IFERROR(VLOOKUP($K22,'Quick Lookup'!$C$3:$D$40,2,FALSE),"") ->  | M22: =SUMIF(SLRs!$B$2:$B$21,'Budget Period #1'!$L22,SLRs!$F$2:$F$21) -> 0 | P22: Division Staff
G23: Total Senior/Key Personnel (A) | H23: =SUM(H13:H22) -> 0
B24: B. Other Personnel
B25: # of Personnel | D25: Project Role | E25: Months | F25: Requested Salary ($) | G25: Fringe Benefits | H25: Funds Requested | P25: Project Role (to Group)
A26: 1.) | D26: Post Doctoral Associates | E26: =SUMIF($P$26:$P$35,$D26,$N$26:$N$35)/(Rates!$B$22/12) -> 0 | F26: =SUMIF($P$26:$P$35,$D26,$O$26:$O$35) -> 0 | G26: =ROUND(F26*$G$10,2) -> 0 | H26: =F26+G26 -> 0 | L26: =IFERROR(VLOOKUP($K26,'Quick Lookup'!$C$3:$D$40,2,FALSE),"") ->  | M26: =SUMIF(SLRs!$B$2:$B$21,'Budget Period #1'!$L26,SLRs!$F$2:$F$21) -> 0 | O26: =ROUND(N26*M26,2) -> 0
A27: 2.) | D27: Graduate Students | E27: =SUMIF($P$26:$P$35,$D27,$N$26:$N$35)/(Rates!$B$22/12) -> 0 | F27: 0 | G27: =ROUND(F27*$G$9,2) -> 0 | H27: 0 | L27: =IFERROR(VLOOKUP($K27,'Quick Lookup'!$C$3:$D$40,2,FALSE),"") ->  | M27: =SUMIF(SLRs!$B$2:$B$21,'Budget Period #1'!$L27,SLRs!$F$2:$F$21) -> 0 | O27: 0
A28: 3.) | D28: Undergraduate Students | E28: =SUMIF($P$26:$P$35,$D28,$N$26:$N$35)/(Rates!$B$22/12) -> 0 | F28: 0 | G28: 0 | H28: 0 | L28: =IFERROR(VLOOKUP($K28,'Quick Lookup'!$C$3:$D$40,2,FALSE),"") ->  | M28: =SUMIF(SLRs!$B$2:$B$21,'Budget Period #1'!$L28,SLRs!$F$2:$F$21) -> 0 | O28: 0
A29: 4.) | D29: Secretarial/Clerical | E29: =SUMIF($P$26:$P$35,$D29,$N$26:$N$35)/(Rates!$B$22/12) -> 0 | F29: 0 | G29: 0 | H29: 0 | L29: =IFERROR(VLOOKUP($K29,'Quick Lookup'!$C$3:$D$40,2,FALSE),"") ->  | M29: =SUMIF(SLRs!$B$2:$B$21,'Budget Period #1'!$L29,SLRs!$F$2:$F$21) -> 0 | O29: 0
A30: 5.) | D30: Engineers | E30: =SUMIF($P$26:$P$35,$D30,$N$26:$N$35)/(Rates!$B$22/12) -> 0 | F30: 0 | G30: 0 | H30: 0 | L30: =IFERROR(VLOOKUP($K30,'Quick Lookup'!$C$3:$D$40,2,FALSE),"") ->  | M30: =SUMIF(SLRs!$B$2:$B$21,'Budget Period #1'!$L30,SLRs!$F$2:$F$21) -> 0 | O30: 0
A31: 6.) | D31: Technicians | E31: =SUMIF($P$26:$P$35,$D31,$N$26:$N$35)/(Rates!$B$22/12) -> 0 | F31: 0 | G31: 0 | H31: 0 | L31: =IFERROR(VLOOKUP($K31,'Quick Lookup'!$C$3:$D$40,2,FALSE),"") ->  | M31: =SUMIF(SLRs!$B$2:$B$21,'Budget Period #1'!$L31,SLRs!$F$2:$F$21) -> 0 | O31: 0
A32: 7.) | E32: =SUMIF($P$26:$P$35,$D32,$N$26:$N$35)/(Rates!$B$22/12) -> 0 | F32: 0 | G32: 0 | H32: 0 | L32: =IFERROR(VLOOKUP($K32,'Quick Lookup'!$C$3:$D$40,2,FALSE),"") ->  | M32: =SUMIF(SLRs!$B$2:$B$21,'Budget Period #1'!$L32,SLRs!$F$2:$F$21) -> 0 | O32: 0
A33: 8.) | E33: =SUMIF($P$26:$P$35,$D33,$N$26:$N$35)/(Rates!$B$22/12) -> 0 | F33: 0 | G33: 0 | H33: 0 | L33: =IFERROR(VLOOKUP($K33,'Quick Lookup'!$C$3:$D$40,2,FALSE),"") ->  | M33: =SUMIF(SLRs!$B$2:$B$21,'Budget Period #1'!$L33,SLRs!$F$2:$F$21) -> 0 | O33: 0
A34: 9.) | E34: =SUMIF($P$26:$P$35,$D34,$N$26:$N$35)/(Rates!$B$22/12) -> 0 | F34: 0 | G34: 0 | H34: 0 | L34: =IFERROR(VLOOKUP($K34,'Quick Lookup'!$C$3:$D$40,2,FALSE),"") ->  | M34: =SUMIF(SLRs!$B$2:$B$21,'Budget Period #1'!$L34,SLRs!$F$2:$F$21) -> 0 | O34: 0
A35: 10.) | E35: =SUMIF($P$26:$P$35,$D35,$N$26:$N$35)/(Rates!$B$22/12) -> 0 | F35: 0 | G35: 0 | H35: 0 | L35: =IFERROR(VLOOKUP($K35,'Quick Lookup'!$C$3:$D$40,2,FALSE),"") ->  | M35: =SUMIF(SLRs!$B$2:$B$21,'Budget Period #1'!$L35,SLRs!$F$2:$F$21) -> 0 | O35: 0
G36: Total Other Personnel (B) | H36: =SUM(H26:H35) -> 0
G38: Total Salary, Wages and Fringe Benefits (A+B) | H38: =H23+H36 -> 0
B39: C. Equipment Description
B40: Equipment Item | G40: Quantity | H40: Funds Requested
A41: 1.)
A42: 2.)
A43: 3.)
A44: 4.)
A45: 5.)
A46: 6.)
A47: 7.)
A48: 8.)
A49: 9.)
A50: 10.)
G51: Total Equipment (C) | H51: =SUM(H41:H50) -> 0
B52: D. Travel
B53: Item | H53: Funds Requested
A54: 1.) | B54: Domestic Travel Costs (incl. Canada, Mexico, and US Possessions)
A55: 2.) | B55: Foreign Travel Costs
G56: Total Travel (D) | H56: =SUM(H54:H55) -> 0
B57: E. Participant/Trainee Support Costs
B58: Item | H58: Funds Requested
A59: 1.) | B59: Tuition/Fees/Health Insurance
A60: 2.) | B60: Stipends
A61: 3.) | B61: Travel
A62: 4.) | B62: Subsistence
A63: 5.) | B63: Other
F64: Number of Participant/Trainees
A65: NOTE: On #1-#5, enter total costs for ALL Participant/Trainees, not as a per participant cost. | G65: Total Participant/Trainee Support Costs (E) | H65: =SUM(H59:H63) -> 0
B66: F. Other Direct Costs
B67: Item | H67: Funds Requested
A68: 1.) | B68: Materials and Supplies
A69: 2.) | B69: Publication Costs
A70: 3.) | B70: Consultant Services | J70: Subawards / Consortium / Contractual Costs
A71: 4.) | B71: ADP/Computer Services | J71: Subawards | K71: National Labs | L71: Pass through
A72: 5.) | B72: Subawards/Consortium/Contractual Costs | H72: =J72+K72+L72 -> 0
A73: 6.) | B73: Equipment or Facility Rental/User Fees
A74: 7.) | B74: Alternation and Renovations
A75: 8.) | B75: Other
G76: Total Other Direct Costs (F) | H76: =SUM(H68:H75) -> 0
B77: G. Direct Costs
B78: Item
A79: 1.) | B79: Total Direct Costs (A-F) | H79: =H23+H36+H51+H56+H65+H76 -> 0
B81: H. Other Indirect Costs
B82: Item | G82: FY2017 Rates | H82: Funds Requested
A83: 1.) | B83: Salary, Wages & Fringe (Division staff) | F83: Program Support | G83: =Rates!B9 -> 0.9353 | H83: =ROUND((H36+SUMIF(P13:P22,'Quick Lookup'!H3,H13:H22))*G83,2) -> 0
A84: 2.) | B84: Salary, Wages & Fringe (Section staff) | F84: CSS Rate | G84: =Rates!B11 -> 0.6947 | H84: =ROUND(SUMIF(P13:P22,'Quick Lookup'!H4,H13:H22)*G84,2) -> 0
A85: 3.) | B85: General and Administrative | G85: =Rates!B12 -> 0.1872 | H85: =ROUND((H56+H65)*G85,2) -> 0
A86: 4.) | B86: MSA (Materials/Services Acquisition) | G86: =Rates!B10 -> 0.2631 | H86: =ROUND((H76+H51-K72-L72)*G86,2) -> 0
A87: 5.) | B87: Pass through | G87: =Rates!B15 -> 0.0429 | H87: =ROUND(L72*G87,2) -> 0
A88: 6.) | B88: Pass through (National Laboratories) | G88: =Rates!B14 -> 0.03 | H88: =ROUND(K72*G88,2) -> 0
G89: Total Indirect Costs (H) | H89: =SUM(H83:H88) -> 0
B91: I. Total Direct and Indirect Costs
A93: 1.) | B93: Total Direct and Indirect Costs (G+H) | H93: =H79+H89 -> 0

Sheet Budget Period #2
B1: ='Budget Period #1'!B1:E1 -> DOE National Laboratory Announcement | E1: =IF('Budget Period #1'!E1>0,'Budget Period #1'!E1,"") -> 
B2: Proposal Title | D2: =IF('Budget Period #1'!D2>0,'Budget Period #1'!D2,"") -> 
B3: Note: The budget submitted by the primary applicant must include all costs associated with the award.
B4: Budget Period Information
B6: Budget Period Start Date | E6: (per Program Announcement Guidelines) | J6: Selecting Job Category and Title will populate Band, Rate, and Project Role
B7: Budget Period End Date | E7: (per Program Announcement Guidelines) | J7: Adding hours will populate Months, Requested Salary, Fringe Benefits, and Funds Requested
J8: Options: Rate can be selected by band only. Project role can be customized.
B9: A. Senior/Key Person (required): | F9: Fringe Rate: | G9: =Rates!B6 -> 0.2975
F10: Fringe PostDoc: | G10: =Rates!B7 -> 0.2375 | J10: Labor Calculations (SLRs)
B12: Name | D12: Project Role | E12: Months | F12: Requested Salary ($) | G12: Fringe Benefits | H12: Funds Requested | J12: Category | K12: Job Title | L12: Band | M12: SLR + VO | N12: Hours | P12: SWF Type (for OH)
A13: 1.) | B13: =IF('Budget Period #1'!B13>0,'Budget Period #1'!B13,"") ->  | D13: =IF('Budget Period #1'!D13>0,'Budget Period #1'!D13,"") ->  | E13: =N13/(Rates!$B$22/12) -> 0 | F13: =ROUND(M13*N13,2) -> 0 | G13: =ROUND(F13*$G$9,2) -> 0 | H13: =F13+G13 -> 0 | J13: =IF('Budget Period #1'!J13>0,'Budget Period #1'!J13,"") -> Engineers | K13: =IF('Budget Period #1'!K13>0,'Budget Period #1'!K13,"") -> Senior Engineer | L13: =IFERROR(VLOOKUP($K13,'Quick Lookup'!$C$3:$D$40,2,FALSE),"") -> E5 | M13: =SUMIF(SLRs!$B$2:$B$21,'Budget Period #2'!$L13,SLRs!$F$2:$F$21)*(1+Rates!$B$17) -> 73.3623 | P13: =IF('Budget Period #1'!P13>0,'Budget Period #1'!P13,"") -> Division Staff
A14: 2.) | B14: =IF('Budget Period #1'!B14>0,'Budget Period #1'!B14,"") ->  | D14: =IF('Budget Period #1'!D14>0,'Budget Period #1'!D14,"") ->  | E14: =N14/(Rates!$B$22/12) -> 0 | F14: 0 | G14: 0 | H14: 0 | J14: =IF('Budget Period #1'!J14>0,'Budget Period #1'!J14,"") ->  | K14: =IF('Budget Period #1'!K14>0,'Budget Period #1'!K14,"") ->  | L14: =IFERROR(VLOOKUP($K14,'Quick Lookup'!$C$3:$D$40,2,FALSE),"") ->  | M14: =SUMIF(SLRs!$B$2:$B$21,'Budget Period #2'!$L14,SLRs!$F$2:$F$21)*(1+Rates!$B$17) -> 0 | P14: =IF('Budget Period #1'!P14>0,'Budget Period #1'!P14,"") -> Division Staff
A15: 3.) | B15: =IF('Budget Period #1'!B15>0,'Budget Period #1'!B15,"") ->  | D15: =IF('Budget Period #1'!D15>0,'Budget Period #1'!D15,"") ->  | E15: =N15/(Rates!$B$22/12) -> 0 | F15: 0 | G15: 0 | H15: 0 | J15: =IF('Budget Period #1'!J15>0,'Budget Period #1'!J15,"") ->  | K15: =IF('Budget Period #1'!K15>0,'Budget Period #1'!K15,"") ->  | L15: =IFERROR(VLOOKUP($K15,'Quick Lookup'!$C$3:$D$40,2,FALSE),"") ->  | M15: =SUMIF(SLRs!$B$2:$B$21,'Budget Period #2'!$L15,SLRs!$F$2:$F$21)*(1+Rates!$B$17) -> 0 | P15: =IF('Budget Period #1'!P15>0,'Budget Period #1'!P15,"") -> Division Staff
A16: 4.) | B16: =IF('Budget Period #1'!B16>0,'Budget Period #1'!B16,"") ->  | D16: =IF('Budget Period #1'!D16>0,'Budget Period #1'!D16,"") ->  | E16: =N16/(Rates!$B$22/12) -> 0 | F16: 0 | G16: 0 | H16: 0 | J16: =IF('Budget Period #1'!J16>0,'Budget Period #1'!J16,"") ->  | K16: =IF('Budget Period #1'!K16>0,'Budget Period #1'!K16,"") ->  | L16: =IFERROR(VLOOKUP($K16,'Quick Lookup'!$C$3:$D$40,2,FALSE),"") ->  | M16: =SUMIF(SLRs!$B$2:$B$21,'Budget Period #2'!$L16,SLRs!$F$2:$F$21)*(1+Rates!$B$17) -> 0 | P16: =IF('Budget Period #1'!P16>0,'Budget Period #1'!P16,"") -> Division Staff
A17: 5.) | B17: =IF('Budget Period #1'!B17>0,'Budget Period #1'!B17,"") ->  | D17: =IF('Budget Period #1'!D17>0,'Budget Period #1'!D17,"") ->  | E17: =N17/(Rates!$B$22/12) -> 0 | F17: 0 | G17: 0 | H17: 0 | J17: =IF('Budget Period #1'!J17>0,'Budget Period #1'!J17,"") ->  | K17: =IF('Budget Period #1'!K17>0,'Budget Period #1'!K17,"") ->  | L17: =IFERROR(VLOOKUP($K17,'Quick Lookup'!$C$3:$D$40,2,FALSE),"") ->  | M17: =SUMIF(SLRs!$B$2:$B$21,'Budget Period #2'!$L17,SLRs!$F$2:$F$21)*(1+Rates!$B$17) -> 0 | P17: =IF('Budget Period #1'!P17>0,'Budget Period #1'!P17,"") -> Division Staff
A18: 6.) | B18: =IF('Budget Period #1'!B18>0,'Budget Period #1'!B18,"") ->  | D18: =IF('Budget Period #1'!D18>0,'Budget Period #1'!D18,"") ->  | E18: =N18/(Rates!$B$22/12) -> 0 | F18: 0 | G18: 0 | H18: 0 | J18: =IF('Budget Period #1'!J18>0,'Budget Period #1'!J18,"") ->  | K18: =IF('Budget Period #1'!K18>0,'Budget Period #1'!K18,"") ->  | L18: =IFERROR(VLOOKUP($K18,'Quick Lookup'!$C$3:$D$40,2,FALSE),"") ->  | M18: =SUMIF(SLRs!$B$2:$B$21,'Budget Period #2'!$L18,SLRs!$F$2:$F$21)*(1+Rates!$B$17) -> 0 | P18: =IF('Budget Period #1'!P18>0,'Budget Period #1'!P18,"") -> Division Staff
A19: 7.) | B19: =IF('Budget Period #1'!B19>0,'Budget Period #1'!B19,"") ->  | D19: =IF('Budget Period #1'!D19>0,'Budget Period #1'!D19,"") ->  | E19: =N19/(Rates!$B$22/12) -> 0 | F19: 0 | G19: 0 | H19: 0 | J19: =IF('Budget Period #1'!J19>0,'Budget Period #1'!J19,"") ->  | K19: =IF('Budget Period #1'!K19>0,'Budget Period #1'!K19,"") ->  | L19: =IFERROR(VLOOKUP($K19,'Quick Lookup'!$C$3:$D$40,2,FALSE),"") ->  | M19: =SUMIF(SLRs!$B$2:$B$21,'Budget Period #2'!$L19,SLRs!$F$2:$F$21)*(1+Rates!$B$17) -> 0 | P19: =IF('Budget Period #1'!P19>0,'Budget Period #1'!P19,"") -> Division Staff
A20: 8.) | B20: =IF('Budget Period #1'!B20>0,'Budget Period #1'!B20,"") ->  | D20: =IF('Budget Period #1'!D20>0,'Budget Period #1'!D20,"") ->  | E20: =N20/(Rates!$B$22/12) -> 0 | F20: 0 | G20: 0 | H20: 0 | J20: =IF('Budget Period #1'!J20>0,'Budget Period #1'!J20,"") ->  | K20: =IF('Budget Period #1'!K20>0,'Budget Period #1'!K20,"") ->  | L20: =IFERROR(VLOOKUP($K20,'Quick Lookup'!$C$3:$D$40,2,FALSE),"") ->  | M20: =SUMIF(SLRs!$B$2:$B$21,'Budget Period #2'!$L20,SLRs!$F$2:$F$21)*(1+Rates!$B$17) -> 0 | P20: =IF('Budget Period #1'!P20>0,'Budget Period #1'!P20,"") -> Division Staff
A21: 9.) | B21: =IF('Budget Period #1'!B21>0,'Budget Period #1'!B21,"") ->  | D21: =IF('Budget Period #1'!D21>0,'Budget Period #1'!D21,"") ->  | E21: =N21/(Rates!$B$22/12) -> 0 | F21: 0 | G21: 0 | H21: 0 | J21: =IF('Budget Period #1'!J21>0,'Budget Period #1'!J21,"") ->  | K21: =IF('Budget Period #1'!K21>0,'Budget Period #1'!K21,"") ->  | L21: =IFERROR(VLOOKUP($K21,'Quick Lookup'!$C$3:$D$40,2,FALSE),"") ->  | M21: =SUMIF(SLRs!$B$2:$B$21,'Budget Period #2'!$L21,SLRs!$F$2:$F$21)*(1+Rates!$B$17) -> 0 | P21: =IF('Budget Period #1'!P21>0,'Budget Period #1'!P21,"") -> Division Staff
A22: 10.) | B22: =IF('Budget Period #1'!B22>0,'Budget Period #1'!B22,"") ->  | D22: =IF('Budget Period #1'!D22>0,'Budget Period #1'!D22,"") ->  | E22: =N22/(Rates!$B$22/12) -> 0 | F22: 0 | G22: 0 | H22: 0 | J22: =IF('Budget Period #1'!J22>0,'Budget Period #1'!J22,"") ->  | K22: =IF('Budget Period #1'!K22>0,'Budget Period #1'!K22,"") ->  | L22: =IFERROR(VLOOKUP($K22,'Quick Lookup'!$C$3:$D$40,2,FALSE),"") ->  | M22: =SUMIF(SLRs!$B$2:$B$21,'Budget Period #2'!$L22,SLRs!$F$2:$F$21)*(1+Rates!$B$17) -> 0 | P22: =IF('Budget Period #1'!P22>0,'Budget Period #1'!P22,"") -> Division Staff
G23: Total Senior/Key Personnel (A) | H23: =SUM(H13:H22) -> 0
B24: B. Other Personnel
B25: # of Personnel | D25: Project Role | E25: Months | F25: Requested Salary ($) | G25: Fringe Benefits | H25: Funds Requested | P25: Project Role (to Group)
A26: 1.) | D26: Post Doctoral Associates | E26: =SUMIF($P$26:$P$35,$D26,$N$26:$N$35)/(Rates!$B$22/12) -> 0 | F26: =SUMIF($P$26:$P$35,$D26,$O$26:$O$35) -> 0 | G26: =ROUND(F26*$G$10,2) -> 0 | H26: =F26+G26 -> 0 | J26: =IF('Budget Period #1'!J26>0,'Budget Period #1'!J26,"") ->  | K26: =IF('Budget Period #1'!K26>0,'Budget Period #1'!K26,"") ->  | L26: =IFERROR(VLOOKUP($K26,'Quick Lookup'!$C$3:$D$40,2,FALSE),"") ->  | M26: =SUMIF(SLRs!$B$2:$B$21,'Budget Period #2'!$L26,SLRs!$F$2:$F$21)*(1+Rates!$B$17) -> 0 | O26: =ROUND(N26*M26,2) -> 0 | P26: =IF('Budget Period #1'!P26>0,'Budget Period #1'!P26,"") -> 
A27: 2.) | D27: Graduate Students | E27: =SUMIF($P$26:$P$35,$D27,$N$26:$N$35)/(Rates!$B$22/12) -> 0 | F27: 0 | G27: =ROUND(F27*$G$9,2) -> 0 | H27: 0 | J27: =IF('Budget Period #1'!J27>0,'Budget Period #1'!J27,"") ->  | K27: =IF('Budget Period #1'!K27>0,'Budget Period #1'!K27,"") ->  | L27: =IFERROR(VLOOKUP($K27,'Quick Lookup'!$C$3:$D$40,2,FALSE),"") ->  | M27: =SUMIF(SLRs!$B$2:$B$21,'Budget Period #2'!$L27,SLRs!$F$2:$F$21)*(1+Rates!$B$17) -> 0 | O27: 0 | P27: =IF('Budget Period #1'!P27>0,'Budget Period #1'!P27,"") -> 
A28: 3.) | D28: Undergraduate Students | E28: =SUMIF($P$26:$P$35,$D28,$N$26:$N$35)/(Rates!$B$22/12) -> 0 | F28: 0 | G28: 0 | H28: 0 | J28: =IF('Budget Period #1'!J28>0,'Budget Period #1'!J28,"") ->  | K28: =IF('Budget Period #1'!K28>0,'Budget Period #1'!K28,"") ->  | L28: =IFERROR(VLOOKUP($K28,'Quick Lookup'!$C$3:$D$40,2,FALSE),"") ->  | M28: =SUMIF(SLRs!$B$2:$B$21,'Budget Period #2'!$L28,SLRs!$F$2:$F$21)*(1+Rates!$B$17) -> 0 | O28: 0 | P28: =IF('Budget Period #1'!P28>0,'Budget Period #1'!P28,"") -> 
A29: 4.) | D29: Secretarial/Clerical | E29: =SUMIF($P$26:$P$35,$D29,$N$26:$N$35)/(Rates!$B$22/12) -> 0 | F29: 0 | G29: 0 | H29: 0 | J29: =IF('Budget Period #1'!J29>0,'Budget Period #1'!J29,"") ->  | K29: =IF('Budget Period #1'!K29>0,'Budget Period #1'!K29,"") ->  | L29: =IFERROR(VLOOKUP($K29,'Quick Lookup'!$C$3:$D$40,2,FALSE),"") ->  | M29: =SUMIF(SLRs!$B$2:$B$21,'Budget Period #2'!$L29,SLRs!$F$2:$F$21)*(1+Rates!$B$17) -> 0 | O29: 0 | P29: =IF('Budget Period #1'!P29>0,'Budget Period #1'!P29,"") -> 
A30: 5.) | D30: Engineers | E30: =SUMIF($P$26:$P$35,$D30,$N$26:$N$35)/(Rates!$B$22/12) -> 0 | F30: 0 | G30: 0 | H30: 0 | J30: =IF('Budget Period #1'!J30>0,'Budget Period #1'!J30,"") ->  | K30: =IF('Budget Period #1'!K30>0,'Budget Period #1'!K30,"") ->  | L30: =IFERROR(VLOOKUP($K30,'Quick Lookup'!$C$3:$D$40,2,FALSE),"") ->  | M30: =SUMIF(SLRs!$B$2:$B$21,'Budget Period #2'!$L30,SLRs!$F$2:$F$21)*(1+Rates!$B$17) -> 0 | O30: 0 | P30: =IF('Budget Period #1'!P30>0,'Budget Period #1'!P30,"") -> 
A31: 6.) | D31: Technicians | E31: =SUMIF($P$26:$P$35,$D31,$N$26:$N$35)/(Rates!$B$22/12) -> 0 | F31: 0 | G31: 0 | H31: 0 | J31: =IF('Budget Period #1'!J31>0,'Budget Period #1'!J31,"") ->  | K31: =IF('Budget Period #1'!K31>0,'Budget Period #1'!K31,"") ->  | L31: =IFERROR(VLOOKUP($K31,'Quick Lookup'!$C$3:$D$40,2,FALSE),"") ->  | M31: =SUMIF(SLRs!$B$2:$B$21,'Budget Period #2'!$L31,SLRs!$F$2:$F$21)*(1+Rates!$B$17) -> 0 | O31: 0 | P31: =IF('Budget Period #1'!P31>0,'Budget Period #1'!P31,"") -> 
A32: 7.) | D32: =IF('Budget Period #1'!D32>0,'Budget Period #1'!D32,"") ->  | E32: =SUMIF($P$26:$P$35,$D32,$N$26:$N$35)/(Rates!$B$22/12) -> 0 | F32: 0 | G32: 0 | H32: 0 | J32: =IF('Budget Period #1'!J32>0,'Budget Period #1'!J32,"") ->  | K32: =IF('Budget Period #1'!K32>0,'Budget Period #1'!K32,"") ->  | L32: =IFERROR(VLOOKUP($K32,'Quick Lookup'!$C$3:$D$40,2,FALSE),"") ->  | M32: =SUMIF(SLRs!$B$2:$B$21,'Budget Period #2'!$L32,SLRs!$F$2:$F$21)*(1+Rates!$B$17) -> 0 | O32: 0 | P32: =IF('Budget Period #1'!P32>0,'Budget Period #1'!P32,"") -> 
A33: 8.) | D33: =IF('Budget Period #1'!D33>0,'Budget Period #1'!D33,"") ->  | E33: =SUMIF($P$26:$P$35,$D33,$N$26:$N$35)/(Rates!$B$22/12) -> 0 | F33: 0 | G33: 0 | H33: 0 | J33: =IF('Budget Period #1'!J33>0,'Budget Period #1'!J33,"") ->  | K33: =IF('Budget Period #1'!K33>0,'Budget Period #1'!K33,"") ->  | L33: =IFERROR(VLOOKUP($K33,'Quick Lookup'!$C$3:$D$40,2,FALSE),"") ->  | M33: =SUMIF(SLRs!$B$2:$B$21,'Budget Period #2'!$L33,SLRs!$F$2:$F$21)*(1+Rates!$B$17) -> 0 | O33: 0 | P33: =IF('Budget Period #1'!P33>0,'Budget Period #1'!P33,"") -> 
A34: 9.) | D34: =IF('Budget Period #1'!D34>0,'Budget Period #1'!D34,"") ->  | E34: =SUMIF($P$26:$P$35,$D34,$N$26:$N$35)/(Rates!$B$22/12) -> 0 | F34: 0 | G34: 0 | H34: 0 | J34: =IF('Budget Period #1'!J34>0,'Budget Period #1'!J34,"") ->  | K34: =IF('Budget Period #1'!K34>0,'Budget Period #1'!K34,"") ->  | L34: =IFERROR(VLOOKUP($K34,'Quick Lookup'!$C$3:$D$40,2,FALSE),"") ->  | M34: =SUMIF(SLRs!$B$2:$B$21,'Budget Period #2'!$L34,SLRs!$F$2:$F$21)*(1+Rates!$B$17) -> 0 | O34: 0 | P34: =IF('Budget Period #1'!P34>0,'Budget Period #1'!P34,"") -> 
A35: 10.) | D35: =IF('Budget Period #1'!D35>0,'Budget Period #1'!D35,"") ->  | E35: =SUMIF($P$26:$P$35,$D35,$N$26:$N$35)/(Rates!$B$22/12) -> 0 | F35: 0 | G35: 0 | H35: 0 | J35: =IF('Budget Period #1'!J35>0,'Budget Period #1'!J35,"") ->  | K35: =IF('Budget Period #1'!K35>0,'Budget Period #1'!K35,"") ->  | L35: =IFERROR(VLOOKUP($K35,'Quick Lookup'!$C$3:$D$40,2,FALSE),"") ->  | M35: =SUMIF(SLRs!$B$2:$B$21,'Budget Period #2'!$L35,SLRs!$F$2:$F$21)*(1+Rates!$B$17) -> 0 | O35: 0 | P35: =IF('Budget Period #1'!P35>0,'Budget Period #1'!P35,"") -> 
G36: Total Other Personnel (B) | H36: =SUM(H26:H35) -> 0
G38: Total Salary, Wages and Fringe Benefits (A+B) | H38: =H23+H36 -> 0
B39: C. Equipment Description
B40: Equipment Item | G40: Quantity | H40: Funds Requested
A41: 1.) | B41: =IF('Budget Period #1'!B41>0,'Budget Period #1'!B41,"") -> 
A42: 2.) | B42: =IF('Budget Period #1'!B42>0,'Budget Period #1'!B42,"") -> 
A43: 3.) | B43: =IF('Budget Period #1'!B43>0,'Budget Period #1'!B43,"") -> 
A44: 4.) | B44: =IF('Budget Period #1'!B44>0,'Budget Period #1'!B44,"") -> 
A45: 5.) | B45: =IF('Budget Period #1'!B45>0,'Budget Period #1'!B45,"") -> 
A46: 6.) | B46: =IF('Budget Period #1'!B46>0,'Budget Period #1'!B46,"") -> 
A47: 7.) | B47: =IF('Budget Period #1'!B47>0,'Budget Period #1'!B47,"") -> 
A48: 8.) | B48: =IF('Budget Period #1'!B48>0,'Budget Period #1'!B48,"") -> 
A49: 9.) | B49: =IF('Budget Period #1'!B49>0,'Budget Period #1'!B49,"") -> 
A50: 10.) | B50: =IF('Budget Period #1'!B50>0,'Budget Period #1'!B50,"") -> 
G51: Total Equipment (C) | H51: =SUM(H41:H50) -> 0
B52: D. Travel
B53: Item | H53: Funds Requested
A54: 1.) | B54: Domestic Travel Costs (incl. Canada, Mexico, and US Possessions)
A55: 2.) | B55: Foreign Travel Costs
G56: Total Travel (D) | H56: =SUM(H54:H55) -> 0
B57: E. Participant/Trainee Support Costs
B58: Item | H58: Funds Requested
A59: 1.) | B59: Tuition/Fees/Health Insurance
A60: 2.) | B60: Stipends
A61: 3.) | B61: Travel
A62: 4.) | B62: Subsistence
A63: 5.) | B63: Other
F64: Number of Participant/Trainees
A65: NOTE: On #1-#5, enter total costs for ALL Participant/Trainees, not as a per participant cost. | G65: Total Participant/Trainee Support Costs (E) | H65: =SUM(H59:H63) -> 0
B66: F. Other Direct Costs
B67: Item | H67: Funds Requested
A68: 1.) | B68: Materials and Supplies
A69: 2.) | B69: Publication Costs
A70: 3.) | B70: Consultant Services | J70: Subawards / Consortium / Contractual Costs
A71: 4.) | B71: ADP/Computer Services | J71: Subawards | K71: National Labs | L71: Pass through
A72: 5.) | B72: Subawards/Consortium/Contractual Costs | H72: =J72+K72+L72 -> 0
A73: 6.) | B73: Equipment or Facility Rental/User Fees
A74: 7.) | B74: Alternation and Renovations
A75: 8.) | B75: Other
G76: Total Other Direct Costs (F) | H76: =SUM(H68:H75) -> 0
B77: G. Direct Costs
B78: Item | H78: Funds Requested
A79: 1.) | B79: Total Direct Costs (A-F) | H79: =H23+H36+H51+H56+H65+H76 -> 0
B81: H. Other Indirect Costs
B82: Item | G82: FY2017 Rates | H82: Funds Requested
A83: 1.) | B83: Salary, Wages & Fringe (Division staff) | F83: Program Support | G83: =Rates!B9 -> 0.9353 | H83: =ROUND((H36+SUMIF(P13:P22,'Quick Lookup'!H3,H13:H22))*G83,2) -> 0
A84: 2.) | B84: Salary, Wages & Fringe (Section staff) | F84: CSS Rate | G84: =Rates!B11 -> 0.6947 | H84: =ROUND(SUMIF(P13:P22,'Quick Lookup'!H4,H13:H22)*G84,2) -> 0
A85: 3.) | B85: General and Administrative (formula, Indirect on D & E) | G85: =Rates!B12 -> 0.1872 | H85: =ROUND((H56+H65)*G85,2) -> 0
A86: 4.) | B86: MSA (Materials/Services Acquisition) (formula, Indirect on C & F) | G86: =Rates!B10 -> 0.2631 | H86: =ROUND((H76+H51-K72-L72)*G86,2) -> 0
A87: 5.) | B87: Pass through | G87: =Rates!B15 -> 0.0429 | H87: =ROUND(L72*G87,2) -> 0
A88: 6.) | B88: Pass through (National Laboratories) | G88: =Rates!B14 -> 0.03 | H88: =ROUND(K72*G88,2) -> 0
G89: Total Indirect Costs (H) | H89: =SUM(H83:H88) -> 0
B91: I. Total Direct and Indirect Costs
A93: 1.) | B93: Total Direct and Indirect Costs (G+H) | H93: =H79+H89 -> 0

Sheet Budget Period #3
B1: ='Budget Period #1'!B1:E1 -> DOE National Laboratory Announcement | E1: =IF('Budget Period #1'!E1>0,'Budget Period #1'!E1,"") -> 
B2: Proposal Title | D2: =IF('Budget Period #1'!D2>0,'Budget Period #1'!D2,"") -> 
B3: Note: The budget submitted by the primary applicant must include all costs associated with the award.
B4: Budget Period Information
B6: Budget Period Start Date | E6: (per Program Announcement Guidelines) | J6: Selecting Job Category and Title will populate Band, Rate, and Project Role
B7: Budget Period End Date | E7: (per Program Announcement Guidelines) | J7: Adding hours will populate Months, Requested Salary, Fringe Benefits, and Funds Requested
J8: Options: Rate can be selected by band only. Project role can be customized.
B9: A. Senior/Key Person (required): | F9: Fringe Rate: | G9: =Rates!B6 -> 0.2975
F10: Fringe PostDoc: | G10: =Rates!B7 -> 0.2375 | J10: Labor Calculations (SLRs)
B12: Name | D12: Project Role | E12: Months | F12: Requested Salary ($) | G12: Fringe Benefits | H12: Funds Requested | J12: Category | K12: Job Title | L12: Band | M12: SLR + VO | N12: Hours | P12: SWF Type (for OH)
A13: 1.) | B13: =IF('Budget Period #1'!B13>0,'Budget Period #1'!B13,"") ->  | D13: =IF('Budget Period #1'!D13>0,'Budget Period #1'!D13,"") ->  | E13: =N13/(Rates!$B$22/12) -> 0 | F13: =ROUND(M13*N13,2) -> 0 | G13: =ROUND(F13*$G$9,2) -> 0 | H13: =F13+G13 -> 0 | J13: =IF('Budget Period #1'!J13>0,'Budget Period #1'!J13,"") -> Engineers | K13: =IF('Budget Period #1'!K13>0,'Budget Period #1'!K13,"") -> Senior Engineer | L13: =IFERROR(VLOOKUP($K13,'Quick Lookup'!$C$3:$D$40,2,FALSE),"") -> E5 | M13: =SUMIF(SLRs!$B$2:$B$21,'Budget Period #3'!$L13,SLRs!$F$2:$F$21)*(1+Rates!$B$17)*(1+Rates!$B$18) -> 75.7098936 | P13: =IF('Budget Period #1'!P13>0,'Budget Period #1'!P13,"") -> Division Staff
A14: 2.) | B14: =IF('Budget Period #1'!B14>0,'Budget Period #1'!B14,"") ->  | D14: =IF('Budget Period #1'!D14>0,'Budget Period #1'!D14,"") ->  | E14: =N14/(Rates!$B$22/12) -> 0 | F14: 0 | G14: 0 | H14: 0 | J14: =IF('Budget Period #1'!J14>0,'Budget Period #1'!J14,"") ->  | K14: =IF('Budget Period #1'!K14>0,'Budget Period #1'!K14,"") ->  | L14: =IFERROR(VLOOKUP($K14,'Quick Lookup'!$C$3:$D$40,2,FALSE),"") ->  | M14: =SUMIF(SLRs!$B$2:$B$21,'Budget Period #3'!$L14,SLRs!$F$2:$F$21)*(1+Rates!$B$17)*(1+Rates!$B$18) -> 0 | P14: =IF('Budget Period #1'!P14>0,'Budget Period #1'!P14,"") -> Division Staff
A15: 3.) | B15: =IF('Budget Period #1'!B15>0,'Budget Period #1'!B15,"") ->  | D15: =IF('Budget Period #1'!D15>0,'Budget Period #1'!D15,"") ->  | E15: =N15/(Rates!$B$22/12) -> 0 | F15: 0 | G15: 0 | H15: 0 | J15: =IF('Budget Period #1'!J15>0,'Budget Period #1'!J15,"") ->  | K15: =IF('Budget Period #1'!K15>0,'Budget Period #1'!K15,"") ->  | L15: =IFERROR(VLOOKUP($K15,'Quick Lookup'!$C$3:$D$40,2,FALSE),"") ->  | M15: =SUMIF(SLRs!$B$2:$B$21,'Budget Period #3'!$L15,SLRs!$F$2:$F$21)*(1+Rates!$B$17)*(1+Rates!$B$18) -> 0 | P15: =IF('Budget Period #1'!P15>0,'Budget Period #1'!P15,"") -> Division Staff
A16: 4.) | B16: =IF('Budget Period #1'!B16>0,'Budget Period #1'!B16,"") ->  | D16: =IF('Budget Period #1'!D16>0,'Budget Period #1'!D16,"") ->  | E16: =N16/(Rates!$B$22/12) -> 0 | F16: 0 | G16: 0 | H16: 0 | J16: =IF('Budget Period #1'!J16>0,'Budget Period #1'!J16,"") ->  | K16: =IF('Budget Period #1'!K16>0,'Budget Period #1'!K16,"") ->  | L16: =IFERROR(VLOOKUP($K16,'Quick Lookup'!$C$3:$D$40,2,FALSE),"") ->  | M16: =SUMIF(SLRs!$B$2:$B$21,'Budget Period #3'!$L16,SLRs!$F$2:$F$21)*(1+Rates!$B$17)*(1+Rates!$B$18) -> 0 | P16: =IF('Budget Period #1'!P16>0,'Budget Period #1'!P16,"") -> Division Staff
A17: 5.) | B17: =IF('Budget Period #1'!B17>0,'Budget Period #1'!B17,"") ->  | D17: =IF('Budget Period #1'!D17>0,'Budget Period #1'!D17,"") ->  | E17: =N17/(Rates!$B$22/12) -> 0 | F17: 0 | G17: 0 | H17: 0 | J17: =IF('Budget Period #1'!J17>0,'Budget Period #1'!J17,"") ->  | K17: =IF('Budget Period #1'!K17>0,'Budget Period #1'!K17,"") ->  | L17: =IFERROR(VLOOKUP($K17,'Quick Lookup'!$C$3:$D$40,2,FALSE),"") ->  | M17: =SUMIF(SLRs!$B$2:$B$21,'Budget Period #3'!$L17,SLRs!$F$2:$F$21)*(1+Rates!$B$17)*(1+Rates!$B$18) -> 0 | P17: =IF('Budget Period #1'!P17>0,'Budget Period #1'!P17,"") -> Division Staff
A18: 6.) | B18: =IF('Budget Period #1'!B18>0,'Budget Period #1'!B18,"") ->  | D18: =IF('Budget Period #1'!D18>0,'Budget Period #1'!D18,"") ->  | E18: =N18/(Rates!$B$22/12) -> 0 | F18: 0 | G18: 0 | H18: 0 | J18: =IF('Budget Period #1'!J18>0,'Budget Period #1'!J18,"") ->  | K18: =IF('Budget Period #1'!K18>0,'Budget Period #1'!K18,"") ->  | L18: =IFERROR(VLOOKUP($K18,'Quick Lookup'!$C$3:$D$40,2,FALSE),"") ->  | M18: =SUMIF(SLRs!$B$2:$B$21,'Budget Period #3'!$L18,SLRs!$F$2:$F$21)*(1+Rates!$B$17)*(1+Rates!$B$18) -> 0 | P18: =IF('Budget Period #1'!P18>0,'Budget Period #1'!P18,"") -> Division Staff
A19: 7.) | B19: =IF('Budget Period #1'!B19>0,'Budget Period #1'!B19,"") ->  | D19: =IF('Budget Period #1'!D19>0,'Budget Period #1'!D19,"") ->  | E19: =N19/(Rates!$B$22/12) -> 0 | F19: 0 | G19: 0 | H19: 0 | J19: =IF('Budget Period #1'!J19>0,'Budget Period #1'!J19,"") ->  | K19: =IF('Budget Period #1'!K19>0,'Budget Period #1'!K19,"") ->  | L19: =IFERROR(VLOOKUP($K19,'Quick Lookup'!$C$3:$D$40,2,FALSE),"") ->  | M19: =SUMIF(SLRs!$B$2:$B$21,'Budget Period #3'!$L19,SLRs!$F$2:$F$21)*(1+Rates!$B$17)*(1+Rates!$B$18) -> 0 | P19: =IF('Budget Period #1'!P19>0,'Budget Period #1'!P19,"") -> Division Staff
A20: 8.) | B20: =IF('Budget Period #1'!B20>0,'Budget Period #1'!B20,"") ->  | D20: =IF('Budget Period #1'!D20>0,'Budget Period #1'!D20,"") ->  | E20: =N20/(Rates!$B$22/12) -> 0 | F20: 0 | G20: 0 | H20: 0 | J20: =IF('Budget Period #1'!J20>0,'Budget Period #1'!J20,"") ->  | K20: =IF('Budget Period #1'!K20>0,'Budget Period #1'!K20,"") ->  | L20: =IFERROR(VLOOKUP($K20,'Quick Lookup'!$C$3:$D$40,2,FALSE),"") ->  | M20: =SUMIF(SLRs!$B$2:$B$21,'Budget Period #3'!$L20,SLRs!$F$2:$F$21)*(1+Rates!$B$17)*(1+Rates!$B$18) -> 0 | P20: =IF('Budget Period #1'!P20>0,'Budget Period #1'!P20,"") -> Division Staff
A21: 9.) | B21: =IF('Budget Period #1'!B21>0,'Budget Period #1'!B21,"") ->  | D21: =IF('Budget Period #1'!D21>0,'Budget Period #1'!D21,"") ->  | E21: =N21/(Rates!$B$22/12) -> 0 | F21: 0 | G21: 0 | H21: 0 | J21: =IF('Budget Period #1'!J21>0,'Budget Period #1'!J21,"") ->  | K21: =IF('Budget Period #1'!K21>0,'Budget Period #1'!K21,"") ->  | L21: =IFERROR(VLOOKUP($K21,'Quick Lookup'!$C$3:$D$40,2,FALSE),"") ->  | M21: =SUMIF(SLRs!$B$2:$B$21,'Budget Period #3'!$L21,SLRs!$F$2:$F$21)*(1+Rates!$B$17)*(1+Rates!$B$18) -> 0 | P21: =IF('Budget Period #1'!P21>0,'Budget Period #1'!P21,"") -> Division Staff
A22: 10.) | B22: =IF('Budget Period #1'!B22>0,'Budget Period #1'!B22,"") ->  | D22: =IF('Budget Period #1'!D22>0,'Budget Period #1'!D22,"") ->  | E22: =N22/(Rates!$B$22/12) -> 0 | F22: 0 | G22: 0 | H22: 0 | J22: =IF('Budget Period #1'!J22>0,'Budget Period #1'!J22,"") ->  | K22: =IF('Budget Period #1'!K22>0,'Budget Period #1'!K22,"") ->  | L22: =IFERROR(VLOOKUP($K22,'Quick Lookup'!$C$3:$D$40,2,FALSE),"") ->  | M22: =SUMIF(SLRs!$B$2:$B$21,'Budget Period #3'!$L22,SLRs!$F$2:$F$21)*(1+Rates!$B$17)*(1+Rates!$B$18) -> 0 | P22: =IF('Budget Period #1'!P22>0,'Budget Period #1'!P22,"") -> Division Staff
G23: Total Senior/Key Personnel (A) | H23: =SUM(H13:H22) -> 0
B24: B. Other Personnel
B25: # of Personnel | D25: Project Role | E25: Months | F25: Requested Salary ($) | G25: Fringe Benefits | H25: Funds Requested | P25: Project Role (to Group)
A26: 1.) | D26: Post Doctoral Associates | E26: =SUMIF($P$26:$P$35,$D26,$N$26:$N$35)/(Rates!$B$22/12) -> 0 | F26: =SUMIF($P$26:$P$35,$D26,$O$26:$O$35) -> 0 | G26: =ROUND(F26*$G$10,2) -> 0 | H26: =F26+G26 -> 0 | J26: =IF('Budget Period #1'!J26>0,'Budget Period #1'!J26,"") ->  | K26: =IF('Budget Period #1'!K26>0,'Budget Period #1'!K26,"") ->  | L26: =IFERROR(VLOOKUP($K26,'Quick Lookup'!$C$3:$D$40,2,FALSE),"") ->  | M26: =SUMIF(SLRs!$B$2:$B$21,'Budget Period #3'!$L26,SLRs!$F$2:$F$21)*(1+Rates!$B$17)*(1+Rates!$B$18) -> 0 | O26: =ROUND(N26*M26,2) -> 0 | P26: =IF('Budget Period #1'!P26>0,'Budget Period #1'!P26,"") -> 
A27: 2.) | D27: Graduate Students | E27: =SUMIF($P$26:$P$35,$D27,$N$26:$N$35)/(Rates!$B$22/12) -> 0 | F27: 0 | G27: =ROUND(F27*$G$9,2) -> 0 | H27: 0 | J27: =IF('Budget Period #1'!J27>0,'Budget Period #1'!J27,"") ->  | K27: =IF('Budget Period #1'!K27>0,'Budget Period #1'!K27,"") ->  | L27: =IFERROR(VLOOKUP($K27,'Quick Lookup'!$C$3:$D$40,2,FALSE),"") ->  | M27: =SUMIF(SLRs!$B$2:$B$21,'Budget Period #3'!$L27,SLRs!$F$2:$F$21)*(1+Rates!$B$17)*(1+Rates!$B$18) -> 0 | O27: 0 | P27: =IF('Budget Period #1'!P27>0,'Budget Period #1'!P27,"") -> 
A28: 3.) | D28: Undergraduate Students | E28: =SUMIF($P$26:$P$35,$D28,$N$26:$N$35)/(Rates!$B$22/12) -> 0 | F28: 0 | G28: 0 | H28: 0 | J28: =IF('Budget Period #1'!J28>0,'Budget Period #1'!J28,"") ->  | K28: =IF('Budget Period #1'!K28>0,'Budget Period #1'!K28,"") ->  | L28: =IFERROR(VLOOKUP($K28,'Quick Lookup'!$C$3:$D$40,2,FALSE),"") ->  | M28: =SUMIF(SLRs!$B$2:$B$21,'Budget Period #3'!$L28,SLRs!$F$2:$F$21)*(1+Rates!$B$17)*(1+Rates!$B$18) -> 0 | O28: 0 | P28: =IF('Budget Period #1'!P28>0,'Budget Period #1'!P28,"") -> 
A29: 4.) | D29: Secretarial/Clerical | E29: =SUMIF($P$26:$P$35,$D29,$N$26:$N$35)/(Rates!$B$22/12) -> 0 | F29: 0 | G29: 0 | H29: 0 | J29: =IF('Budget Period #1'!J29>0,'Budget Period #1'!J29,"") ->  | K29: =IF('Budget Period #1'!K29>0,'Budget Period #1'!K29,"") ->  | L29: =IFERROR(VLOOKUP($K29,'Quick Lookup'!$C$3:$D$40,2,FALSE),"") ->  | M29: =SUMIF(SLRs!$B$2:$B$21,'Budget Period #3'!$L29,SLRs!$F$2:$F$21)*(1+Rates!$B$17)*(1+Rates!$B$18) -> 0 | O29: 0 | P29: =IF('Budget Period #1'!P29>0,'Budget Period #1'!P29,"") -> 
A30: 5.) | D30: Engineers | E30: =SUMIF($P$26:$P$35,$D30,$N$26:$N$35)/(Rates!$B$22/12) -> 0 | F30: 0 | G30: 0 | H30: 0 | J30: =IF('Budget Period #1'!J30>0,'Budget Period #1'!J30,"") ->  | K30: =IF('Budget Period #1'!K30>0,'Budget Period #1'!K30,"") ->  | L30: =IFERROR(VLOOKUP($K30,'Quick Lookup'!$C$3:$D$40,2,FALSE),"") ->  | M30: =SUMIF(SLRs!$B$2:$B$21,'Budget Period #3'!$L30,SLRs!$F$2:$F$21)*(1+Rates!$B$17)*(1+Rates!$B$18) -> 0 | O30: 0 | P30: =IF('Budget Period #1'!P30>0,'Budget Period #1'!P30,"") -> 
A31: 6.) | D31: Technicians | E31: =SUMIF($P$26:$P$35,$D31,$N$26:$N$35)/(Rates!$B$22/12) -> 0 | F31: 0 | G31: 0 | H31: 0 | J31: =IF('Budget Period #1'!J31>0,'Budget Period #1'!J31,"") ->  | K31: =IF('Budget Period #1'!K31>0,'Budget Period #1'!K31,"") ->  | L31: =IFERROR(VLOOKUP($K31,'Quick Lookup'!$C$3:$D$40,2,FALSE),"") ->  | M31: =SUMIF(SLRs!$B$2:$B$21,'Budget Period #3'!$L31,SLRs!$F$2:$F$21)*(1+Rates!$B$17)*(1+Rates!$B$18) -> 0 | O31: 0 | P31: =IF('Budget Period #1'!P31>0,'Budget Period #1'!P31,"") -> 
A32: 7.) | D32: =IF('Budget Period #1'!D32>0,'Budget Period #1'!D32,"") ->  | E32: =SUMIF($P$26:$P$35,$D32,$N$26:$N$35)/(Rates!$B$22/12) -> 0 | F32: 0 | G32: 0 | H32: 0 | J32: =IF('Budget Period #1'!J32>0,'Budget Period #1'!J32,"") ->  | K32: =IF('Budget Period #1'!K32>0,'Budget Period #1'!K32,"") ->  | L32: =IFERROR(VLOOKUP($K32,'Quick Lookup'!$C$3:$D$40,2,FALSE),"") ->  | M32: =SUMIF(SLRs!$B$2:$B$21,'Budget Period #3'!$L32,SLRs!$F$2:$F$21)*(1+Rates!$B$17)*(1+Rates!$B$18) -> 0 | O32: 0 | P32: =IF('Budget Period #1'!P32>0,'Budget Period #1'!P32,"") -> 
A33: 8.) | D33: =IF('Budget Period #1'!D33>0,'Budget Period #1'!D33,"") ->  | E33: =SUMIF($P$26:$P$35,$D33,$N$26:$N$35)/(Rates!$B$22/12) -> 0 | F33: 0 | G33: 0 | H33: 0 | J33: =IF('Budget Period #1'!J33>0,'Budget Period #1'!J33,"") ->  | K33: =IF('Budget Period #1'!K33>0,'Budget Period #1'!K33,"") ->  | L33: =IFERROR(VLOOKUP($K33,'Quick Lookup'!$C$3:$D$40,2,FALSE),"") ->  | M33: =SUMIF(SLRs!$B$2:$B$21,'Budget Period #3'!$L33,SLRs!$F$2:$F$21)*(1+Rates!$B$17)*(1+Rates!$B$18) -> 0 | O33: 0 | P33: =IF('Budget Period #1'!P33>0,'Budget Period #1'!P33,"") -> 
A34: 9.) | D34: =IF('Budget Period #1'!D34>0,'Budget Period #1'!D34,"") ->  | E34: =SUMIF($P$26:$P$35,$D34,$N$26:$N$35)/(Rates!$B$22/12) -> 0 | F34: 0 | G34: 0 | H34: 0 | J34: =IF('Budget Period #1'!J34>0,'Budget Period #1'!J34,"") ->  | K34: =IF('Budget Period #1'!K34>0,'Budget Period #1'!K34,"") ->  | L34: =IFERROR(VLOOKUP($K34,'Quick Lookup'!$C$3:$D$40,2,FALSE),"") ->  | M34: =SUMIF(SLRs!$B$2:$B$21,'Budget Period #3'!$L34,SLRs!$F$2:$F$21)*(1+Rates!$B$17)*(1+Rates!$B$18) -> 0 | O34: 0 | P34: =IF('Budget Period #1'!P34>0,'Budget Period #1'!P34,"") -> 
A35: 10.) | D35: =IF('Budget Period #1'!D35>0,'Budget Period #1'!D35,"") ->  | E35: =SUMIF($P$26:$P$35,$D35,$N$26:$N$35)/(Rates!$B$22/12) -> 0 | F35: 0 | G35: 0 | H35: 0 | J35: =IF('Budget Period #1'!J35>0,'Budget Period #1'!J35,"") ->  | K35: =IF('Budget Period #1'!K35>0,'Budget Period #1'!K35,"") ->  | L35: =IFERROR(VLOOKUP($K35,'Quick Lookup'!$C$3:$D$40,2,FALSE),"") ->  | M35: =SUMIF(SLRs!$B$2:$B$21,'Budget Period #3'!$L35,SLRs!$F$2:$F$21)*(1+Rates!$B$17)*(1+Rates!$B$18) -> 0 | O35: 0 | P35: =IF('Budget Period #1'!P35>0,'Budget Period #1'!P35,"") -> 
G36: Total Other Personnel (B) | H36: =SUM(H26:H35) -> 0
G38: Total Salary, Wages and Fringe Benefits (A+B) | H38: =H23+H36 -> 0
B39: C. Equipment Description
B40: Equipment Item | G40: Quantity | H40: Funds Requested
A41: 1.) | B41: =IF('Budget Period #1'!B41>0,'Budget Period #1'!B41,"") -> 
A42: 2.) | B42: =IF('Budget Period #1'!B42>0,'Budget Period #1'!B42,"") -> 
A43: 3.) | B43: =IF('Budget Period #1'!B43>0,'Budget Period #1'!B43,"") -> 
A44: 4.) | B44: =IF('Budget Period #1'!B44>0,'Budget Period #1'!B44,"") -> 
A45: 5.) | B45: =IF('Budget Period #1'!B45>0,'Budget Period #1'!B45,"") -> 
A46: 6.) | B46: =IF('Budget Period #1'!B46>0,'Budget Period #1'!B46,"") -> 
A47: 7.) | B47: =IF('Budget Period #1'!B47>0,'Budget Period #1'!B47,"") -> 
A48: 8.) | B48: =IF('Budget Period #1'!B48>0,'Budget Period #1'!B48,"") -> 
A49: 9.) | B49: =IF('Budget Period #1'!B49>0,'Budget Period #1'!B49,"") -> 
A50: 10.) | B50: =IF('Budget Period #1'!B50>0,'Budget Period #1'!B50,"") -> 
G51: Total Equipment (C) | H51: =SUM(H41:H50) -> 0
B52: D. Travel
B53: Item | H53: Funds Requested
A54: 1.) | B54: Domestic Travel Costs (incl. Canada, Mexico, and US Possessions)
A55: 2.) | B55: Foreign Travel Costs
G56: Total Travel (D) | H56: =SUM(H54:H55) -> 0
B57: E. Participant/Trainee Support Costs
B58: Item | H58: Funds Requested
A59: 1.) | B59: Tuition/Fees/Health Insurance
A60: 2.) | B60: Stipends
A61: 3.) | B61: Travel
A62: 4.) | B62: Subsistence
A63: 5.) | B63: Other
F64: Number of Participant/Trainees
A65: NOTE: On #1-#5, enter total costs for ALL Participant/Trainees, not as a per participant cost. | G65: Total Participant/Trainee Support Costs (E) | H65: =SUM(H59:H63) -> 0
B66: F. Other Direct Costs
B67: Item | H67: Funds Requested
A68: 1.) | B68: Materials and Supplies
A69: 2.) | B69: Publication Costs
A70: 3.) | B70: Consultant Services | J70: Subawards / Consortium / Contractual Costs
A71: 4.) | B71: ADP/Computer Services | J71: Subawards | K71: National Labs | L71: Pass through
A72: 5.) | B72: Subawards/Consortium/Contractual Costs | H72: =J72+K72+L72 -> 0
A73: 6.) | B73: Equipment or Facility Rental/User Fees
A74: 7.) | B74: Alternation and Renovations
A75: 8.) | B75: Other
G76: Total Other Direct Costs (F) | H76: =SUM(H68:H75) -> 0
B77: G. Direct Costs
B78: Item | H78: Funds Requested
A79: 1.) | B79: Total Direct Costs (A-F) | H79: =H23+H36+H51+H56+H65+H76 -> 0
B81: H. Other Indirect Costs
B82: Item | G82: FY2017 Rates | H82: Funds Requested
A83: 1.) | B83: Salary, Wages & Fringe (Division staff) | F83: Program Support | G83: =Rates!B9 -> 0.9353 | H83: =ROUND((H36+SUMIF(P13:P22,'Quick Lookup'!H3,H13:H22))*G83,2) -> 0
A84: 2.) | B84: Salary, Wages & Fringe (Section staff) | F84: CSS Rate | G84: =Rates!B11 -> 0.6947 | H84: =ROUND(SUMIF(P13:P22,'Quick Lookup'!H4,H13:H22)*G84,2) -> 0
A85: 3.) | B85: General and Administrative (formula, Indirect on D & E) | G85: =Rates!B12 -> 0.1872 | H85: =ROUND((H56+H65)*G85,2) -> 0
A86: 4.) | B86: MSA (Materials/Services Acquisition) (formula, Indirect on C & F) | G86: =Rates!B10 -> 0.2631 | H86: =ROUND((H76+H51-K72-L72)*G86,2) -> 0
A87: 5.) | B87: Pass through | G87: =Rates!B15 -> 0.0429 | H87: =ROUND(L72*G87,2) -> 0
A88: 6.) | B88: Pass through (National Laboratories) | G88: =Rates!B14 -> 0.03 | H88: =ROUND(K72*G88,2) -> 0
G89: Total Indirect Costs (H) | H89: =SUM(H83:H88) -> 0
B91: I. Total Direct and Indirect Costs
B92: Item | H92: Funds Requested
A93: 1.) | B93: Total Direct and Indirect Costs (G+H) | H93: =H79+H89 -> 0

Sheet Budget Period #4
B1: ='Budget Period #1'!B1:E1 -> DOE National Laboratory Announcement | E1: =IF('Budget Period #1'!E1>0,'Budget Period #1'!E1,"") -> 
B2: Proposal Title | D2: =IF('Budget Period #1'!D2>0,'Budget Period #1'!D2,"") -> 
B3: Note: The budget submitted by the primary applicant must include all costs associated with the award.
B4: Budget Period Information
B6: Budget Period Start Date | E6: (per Program Announcement Guidelines) | J6: Selecting Job Category and Title will populate Band, Rate, and Project Role
B7: Budget Period End Date | E7: (per Program Announcement Guidelines) | J7: Adding hours will populate Months, Requested Salary, Fringe Benefits, and Funds Requested
J8: Options: Rate can be selected by band only. Project role can be customized.
B9: A. Senior/Key Person (required): | F9: Fringe Rate: | G9: =Rates!B6 -> 0.2975
F10: Fringe PostDoc: | G10: =Rates!B7 -> 0.2375 | J10: Labor Calculations (SLRs)
B12: Name | D12: Project Role | E12: Months | F12: Requested Salary ($) | G12: Fringe Benefits | H12: Funds Requested | J12: Category | K12: Job Title | L12: Band | M12: SLR + VO | N12: Hours | P12: SWF Type (for OH)
A13: 1.) | B13: =IF('Budget Period #1'!B13>0,'Budget Period #1'!B13,"") ->  | D13: =IF('Budget Period #1'!D13>0,'Budget Period #1'!D13,"") ->  | E13: =N13/(Rates!$B$22/12) -> 0 | F13: =ROUND(M13*N13,2) -> 0 | G13: =ROUND(F13*$G$9,2) -> 0 | H13: =F13+G13 -> 0 | J13: =IF('Budget Period #1'!J13>0,'Budget Period #1'!J13,"") -> Engineers | K13: =IF('Budget Period #1'!K13>0,'Budget Period #1'!K13,"") -> Senior Engineer | L13: =IFERROR(VLOOKUP($K13,'Quick Lookup'!$C$3:$D$40,2,FALSE),"") -> E5 | M13: =SUMIF(SLRs!$B$2:$B$21,'Budget Period #4'!$L13,SLRs!$F$2:$F$21)*(1+Rates!$B$17)*(1+Rates!$B$18)*(1+Rates!$B$19) -> 78.0569003 | P13: =IF('Budget Period #1'!P13>0,'Budget Period #1'!P13,"") -> Division Staff
A14: 2.) | B14: =IF('Budget Period #1'!B14>0,'Budget Period #1'!B14,"") ->  | D14: =IF('Budget Period #1'!D14>0,'Budget Period #1'!D14,"") ->  | E14: =N14/(Rates!$B$22/12) -> 0 | F14: 0 | G14: 0 | H14: 0 | J14: =IF('Budget Period #1'!J14>0,'Budget Period #1'!J14,"") ->  | K14: =IF('Budget Period #1'!K14>0,'Budget Period #1'!K14,"") ->  | L14: =IFERROR(VLOOKUP($K14,'Quick Lookup'!$C$3:$D$40,2,FALSE),"") ->  | M14: =SUMIF(SLRs!$B$2:$B$21,'Budget Period #4'!$L14,SLRs!$F$2:$F$21)*(1+Rates!$B$17)*(1+Rates!$B$18)*(1+Rates!$B$19) -> 0 | P14: =IF('Budget Period #1'!P14>0,'Budget Period #1'!P14,"") -> Division Staff
A15: 3.) | B15: =IF('Budget Period #1'!B15>0,'Budget Period #1'!B15,"") ->  | D15: =IF('Budget Period #1'!D15>0,'Budget Period #1'!D15,"") ->  | E15: =N15/(Rates!$B$22/12) -> 0 | F15: 0 | G15: 0 | H15: 0 | J15: =IF('Budget Period #1'!J15>0,'Budget Period #1'!J15,"") ->  | K15: =IF('Budget Period #1'!K15>0,'Budget Period #1'!K15,"") ->  | L15: =IFERROR(VLOOKUP($K15,'Quick Lookup'!$C$3:$D$40,2,FALSE),"") ->  | M15: =SUMIF(SLRs!$B$2:$B$21,'Budget Period #4'!$L15,SLRs!$F$2:$F$21)*(1+Rates!$B$17)*(1+Rates!$B$18)*(1+Rates!$B$19) -> 0 | P15: =IF('Budget Period #1'!P15>0,'Budget Period #1'!P15,"") -> Division Staff
A16: 4.) | B16: =IF('Budget Period #1'!B16>0,'Budget Period #1'!B16,"") ->  | D16: =IF('Budget Period #1'!D16>0,'Budget Period #1'!D16,"") ->  | E16: =N16/(Rates!$B$22/12) -> 0 | F16: 0 | G16: 0 | H16: 0 | J16: =IF('Budget Period #1'!J16>0,'Budget Period #1'!J16,"") ->  | K16: =IF('Budget Period #1'!K16>0,'Budget Period #1'!K16,"") ->  | L16: =IFERROR(VLOOKUP($K16,'Quick Lookup'!$C$3:$D$40,2,FALSE),"") ->  | M16: =SUMIF(SLRs!$B$2:$B$21,'Budget Period #4'!$L16,SLRs!$F$2:$F$21)*(1+Rates!$B$17)*(1+Rates!$B$18)*(1+Rates!$B$19) -> 0 | P16: =IF('Budget Period #1'!P16>0,'Budget Period #1'!P16,"") -> Division Staff
A17: 5.) | B17: =IF('Budget Period #1'!B17>0,'Budget Period #1'!B17,"") ->  | D17: =IF('Budget Period #1'!D17>0,'Budget Period #1'!D17,"") ->  | E17: =N17/(Rates!$B$22/12) -> 0 | F17: 0 | G17: 0 | H17: 0 | J17: =IF('Budget Period #1'!J17>0,'Budget Period #1'!J17,"") ->  | K17: =IF('Budget Period #1'!K17>0,'Budget Period #1'!K17,"") ->  | L17: =IFERROR(VLOOKUP($K17,'Quick Lookup'!$C$3:$D$40,2,FALSE),"") ->  | M17: =SUMIF(SLRs!$B$2:$B$21,'Budget Period #4'!$L17,SLRs!$F$2:$F$21)*(1+Rates!$B$17)*(1+Rates!$B$18)*(1+Rates!$B$19) -> 0 | P17: =IF('Budget Period #1'!P17>0,'Budget Period #1'!P17,"") -> Division Staff
A18: 6.) | B18: =IF('Budget Period #1'!B18>0,'Budget Period #1'!B18,"") ->  | D18: =IF('Budget Period #1'!D18>0,'Budget Period #1'!D18,"") ->  | E18: =N18/(Rates!$B$22/12) -> 0 | F18: 0 | G18: 0 | H18: 0 | J18: =IF('Budget Period #1'!J18>0,'Budget Period #1'!J18,"") ->  | K18: =IF('Budget Period #1'!K18>0,'Budget Period #1'!K18,"") ->  | L18: =IFERROR(VLOOKUP($K18,'Quick Lookup'!$C$3:$D$40,2,FALSE),"") ->  | M18: =SUMIF(SLRs!$B$2:$B$21,'Budget Period #4'!$L18,SLRs!$F$2:$F$21)*(1+Rates!$B$17)*(1+Rates!$B$18)*(1+Rates!$B$19) -> 0 | P18: =IF('Budget Period #1'!P18>0,'Budget Period #1'!P18,"") -> Division Staff
A19: 7.) | B19: =IF('Budget Period #1'!B19>0,'Budget Period #1'!B19,"") ->  | D19: =IF('Budget Period #1'!D19>0,'Budget Period #1'!D19,"") ->  | E19: =N19/(Rates!$B$22/12) -> 0 | F19: 0 | G19: 0 | H19: 0 | J19: =IF('Budget Period #1'!J19>0,'Budget Period #1'!J19,"") ->  | K19: =IF('Budget Period #1'!K19>0,'Budget Period #1'!K19,"") ->  | L19: =IFERROR(VLOOKUP($K19,'Quick Lookup'!$C$3:$D$40,2,FALSE),"") ->  | M19: =SUMIF(SLRs!$B$2:$B$21,'Budget Period #4'!$L19,SLRs!$F$2:$F$21)*(1+Rates!$B$17)*(1+Rates!$B$18)*(1+Rates!$B$19) -> 0 | P19: =IF('Budget Period #1'!P19>0,'Budget Period #1'!P19,"") -> Division Staff
A20: 8.) | B20: =IF('Budget Period #1'!B20>0,'Budget Period #1'!B20,"") ->  | D20: =IF('Budget Period #1'!D20>0,'Budget Period #1'!D20,"") ->  | E20: =N20/(Rates!$B$22/12) -> 0 | F20: 0 | G20: 0 | H20: 0 | J20: =IF('Budget Period #1'!J20>0,'Budget Period #1'!J20,"") ->  | K20: =IF('Budget Period #1'!K20>0,'Budget Period #1'!K20,"") ->  | L20: =IFERROR(VLOOKUP($K20,'Quick Lookup'!$C$3:$D$40,2,FALSE),"") ->  | M20: =SUMIF(SLRs!$B$2:$B$21,'Budget Period #4'!$L20,SLRs!$F$2:$F$21)*(1+Rates!$B$17)*(1+Rates!$B$18)*(1+Rates!$B$19) -> 0 | P20: =IF('Budget Period #1'!P20>0,'Budget Period #1'!P20,"") -> Division Staff
A21: 9.) | B21: =IF('Budget Period #1'!B21>0,'Budget Period #1'!B21,"") ->  | D21: =IF('Budget Period #1'!D21>0,'Budget Period #1'!D21,"") ->  | E21: =N21/(Rates!$B$22/12) -> 0 | F21: 0 | G21: 0 | H21: 0 | J21: =IF('Budget Period #1'!J21>0,'Budget Period #1'!J21,"") ->  | K21: =IF('Budget Period #1'!K21>0,'Budget Period #1'!K21,"") ->  | L21: =IFERROR(VLOOKUP($K21,'Quick Lookup'!$C$3:$D$40,2,FALSE),"") ->  | M21: =SUMIF(SLRs!$B$2:$B$21,'Budget Period #4'!$L21,SLRs!$F$2:$F$21)*(1+Rates!$B$17)*(1+Rates!$B$18)*(1+Rates!$B$19) -> 0 | P21: =IF('Budget Period #1'!P21>0,'Budget Period #1'!P21,"") -> Division Staff
A22: 10.) | B22: =IF('Budget Period #1'!B22>0,'Budget Period #1'!B22,"") ->  | D22: =IF('Budget Period #1'!D22>0,'Budget Period #1'!D22,"") ->  | E22: =N22/(Rates!$B$22/12) -> 0 | F22: 0 | G22: 0 | H22: 0 | J22: =IF('Budget Period #1'!J22>0,'Budget Period #1'!J22,"") ->  | K22: =IF('Budget Period #1'!K22>0,'Budget Period #1'!K22,"") ->  | L22: =IFERROR(VLOOKUP($K22,'Quick Lookup'!$C$3:$D$40,2,FALSE),"") ->  | M22: =SUMIF(SLRs!$B$2:$B$21,'Budget Period #4'!$L22,SLRs!$F$2:$F$21)*(1+Rates!$B$17)*(1+Rates!$B$18)*(1+Rates!$B$19) -> 0 | P22: =IF('Budget Period #1'!P22>0,'Budget Period #1'!P22,"") -> Division Staff
G23: Total Senior/Key Personnel (A) | H23: =SUM(H13:H22) -> 0
B24: B. Other Personnel
B25: # of Personnel | D25: Project Role | E25: Months | F25: Requested Salary ($) | G25: Fringe Benefits | H25: Funds Requested | P25: Project Role (to Group)
A26: 1.) | D26: Post Doctoral Associates | E26: =SUMIF($P$26:$P$35,$D26,$N$26:$N$35)/(Rates!$B$22/12) -> 0 | F26: =SUMIF($P$26:$P$35,$D26,$O$26:$O$35) -> 0 | G26: =ROUND(F26*$G$10,2) -> 0 | H26: =F26+G26 -> 0 | J26: =IF('Budget Period #1'!J26>0,'Budget Period #1'!J26,"") ->  | K26: =IF('Budget Period #1'!K26>0,'Budget Period #1'!K26,"") ->  | L26: =IFERROR(VLOOKUP($K26,'Quick Lookup'!$C$3:$D$40,2,FALSE),"") ->  | M26: =SUMIF(SLRs!$B$2:$B$21,'Budget Period #4'!$L26,SLRs!$F$2:$F$21)*(1+Rates!$B$17)*(1+Rates!$B$18)*(1+Rates!$B$19) -> 0 | O26: =ROUND(N26*M26,2) -> 0 | P26: =IF('Budget Period #1'!P26>0,'Budget Period #1'!P26,"") -> 
A27: 2.) | D27: Graduate Students | E27: =SUMIF($P$26:$P$35,$D27,$N$26:$N$35)/(Rates!$B$22/12) -> 0 | F27: 0 | G27: =ROUND(F27*$G$9,2) -> 0 | H27: 0 | J27: =IF('Budget Period #1'!J27>0,'Budget Period #1'!J27,"") ->  | K27: =IF('Budget Period #1'!K27>0,'Budget Period #1'!K27,"") ->  | L27: =IFERROR(VLOOKUP($K27,'Quick Lookup'!$C$3:$D$40,2,FALSE),"") ->  | M27: =SUMIF(SLRs!$B$2:$B$21,'Budget Period #4'!$L27,SLRs!$F$2:$F$21)*(1+Rates!$B$17)*(1+Rates!$B$18)*(1+Rates!$B$19) -> 0 | O27: 0 | P27: =IF('Budget Period #1'!P27>0,'Budget Period #1'!P27,"") -> 
A28: 3.) | D28: Undergraduate Students | E28: =SUMIF($P$26:$P$35,$D28,$N$26:$N$35)/(Rates!$B$22/12) -> 0 | F28: 0 | G28: 0 | H28: 0 | J28: =IF('Budget Period #1'!J28>0,'Budget Period #1'!J28,"") ->  | K28: =IF('Budget Period #1'!K28>0,'Budget Period #1'!K28,"") ->  | L28: =IFERROR(VLOOKUP($K28,'Quick Lookup'!$C$3:$D$40,2,FALSE),"") ->  | M28: =SUMIF(SLRs!$B$2:$B$21,'Budget Period #4'!$L28,SLRs!$F$2:$F$21)*(1+Rates!$B$17)*(1+Rates!$B$18)*(1+Rates!$B$19) -> 0 | O28: 0 | P28: =IF('Budget Period #1'!P28>0,'Budget Period #1'!P28,"") -> 
A29: 4.) | D29: Secretarial/Clerical | E29: =SUMIF($P$26:$P$35,$D29,$N$26:$N$35)/(Rates!$B$22/12) -> 0 | F29: 0 | G29: 0 | H29: 0 | J29: =IF('Budget Period #1'!J29>0,'Budget Period #1'!J29,"") ->  | K29: =IF('Budget Period #1'!K29>0,'Budget Period #1'!K29,"") ->  | L29: =IFERROR(VLOOKUP($K29,'Quick Lookup'!$C$3:$D$40,2,FALSE),"") ->  | M29: =SUMIF(SLRs!$B$2:$B$21,'Budget Period #4'!$L29,SLRs!$F$2:$F$21)*(1+Rates!$B$17)*(1+Rates!$B$18)*(1+Rates!$B$19) -> 0 | O29: 0 | P29: =IF('Budget Period #1'!P29>0,'Budget Period #1'!P29,"") -> 
A30: 5.) | D30: Engineers | E30: =SUMIF($P$26:$P$35,$D30,$N$26:$N$35)/(Rates!$B$22/12) -> 0 | F30: 0 | G30: 0 | H30: 0 | J30: =IF('Budget Period #1'!J30>0,'Budget Period #1'!J30,"") ->  | K30: =IF('Budget Period #1'!K30>0,'Budget Period #1'!K30,"") ->  | L30: =IFERROR(VLOOKUP($K30,'Quick Lookup'!$C$3:$D$40,2,FALSE),"") ->  | M30: =SUMIF(SLRs!$B$2:$B$21,'Budget Period #4'!$L30,SLRs!$F$2:$F$21)*(1+Rates!$B$17)*(1+Rates!$B$18)*(1+Rates!$B$19) -> 0 | O30: 0 | P30: =IF('Budget Period #1'!P30>0,'Budget Period #1'!P30,"") -> 
A31: 6.) | D31: Technicians | E31: =SUMIF($P$26:$P$35,$D31,$N$26:$N$35)/(Rates!$B$22/12) -> 0 | F31: 0 | G31: 0 | H31: 0 | J31: =IF('Budget Period #1'!J31>0,'Budget Period #1'!J31,"") ->  | K31: =IF('Budget Period #1'!K31>0,'Budget Period #1'!K31,"") ->  | L31: =IFERROR(VLOOKUP($K31,'Quick Lookup'!$C$3:$D$40,2,FALSE),"") ->  | M31: =SUMIF(SLRs!$B$2:$B$21,'Budget Period #4'!$L31,SLRs!$F$2:$F$21)*(1+Rates!$B$17)*(1+Rates!$B$18)*(1+Rates!$B$19) -> 0 | O31: 0 | P31: =IF('Budget Period #1'!P31>0,'Budget Period #1'!P31,"") -> 
A32: 7.) | D32: =IF('Budget Period #1'!D32>0,'Budget Period #1'!D32,"") ->  | E32: =SUMIF($P$26:$P$35,$D32,$N$26:$N$35)/(Rates!$B$22/12) -> 0 | F32: 0 | G32: 0 | H32: 0 | J32: =IF('Budget Period #1'!J32>0,'Budget Period #1'!J32,"") ->  | K32: =IF('Budget Period #1'!K32>0,'Budget Period #1'!K32,"") ->  | L32: =IFERROR(VLOOKUP($K32,'Quick Lookup'!$C$3:$D$40,2,FALSE),"") ->  | M32: =SUMIF(SLRs!$B$2:$B$21,'Budget Period #4'!$L32,SLRs!$F$2:$F$21)*(1+Rates!$B$17)*(1+Rates!$B$18)*(1+Rates!$B$19) -> 0 | O32: 0 | P32: =IF('Budget Period #1'!P32>0,'Budget Period #1'!P32,"") -> 
A33: 8.) | D33: =IF('Budget Period #1'!D33>0,'Budget Period #1'!D33,"") ->  | E33: =SUMIF($P$26:$P$35,$D33,$N$26:$N$35)/(Rates!$B$22/12) -> 0 | F33: 0 | G33: 0 | H33: 0 | J33: =IF('Budget Period #1'!J33>0,'Budget Period #1'!J33,"") ->  | K33: =IF('Budget Period #1'!K33>0,'Budget Period #1'!K33,"") ->  | L33: =IFERROR(VLOOKUP($K33,'Quick Lookup'!$C$3:$D$40,2,FALSE),"") ->  | M33: =SUMIF(SLRs!$B$2:$B$21,'Budget Period #4'!$L33,SLRs!$F$2:$F$21)*(1+Rates!$B$17)*(1+Rates!$B$18)*(1+Rates!$B$19) -> 0 | O33: 0 | P33: =IF('Budget Period #1'!P33>0,'Budget Period #1'!P33,"") -> 
A34: 9.) | D34: =IF('Budget Period #1'!D34>0,'Budget Period #1'!D34,"") ->  | E34: =SUMIF($P$26:$P$35,$D34,$N$26:$N$35)/(Rates!$B$22/12) -> 0 | F34: 0 | G34: 0 | H34: 0 | J34: =IF('Budget Period #1'!J34>0,'Budget Period #1'!J34,"") ->  | K34: =IF('Budget Period #1'!K34>0,'Budget Period #1'!K34,"") ->  | L34: =IFERROR(VLOOKUP($K34,'Quick Lookup'!$C$3:$D$40,2,FALSE),"") ->  | M34: =SUMIF(SLRs!$B$2:$B$21,'Budget Period #4'!$L34,SLRs!$F$2:$F$21)*(1+Rates!$B$17)*(1+Rates!$B$18)*(1+Rates!$B$19) -> 0 | O34: 0 | P34: =IF('Budget Period #1'!P34>0,'Budget Period #1'!P34,"") -> 
A35: 10.) | D35: =IF('Budget Period #1'!D35>0,'Budget Period #1'!D35,"") ->  | E35: =SUMIF($P$26:$P$35,$D35,$N$26:$N$35)/(Rates!$B$22/12) -> 0 | F35: 0 | G35: 0 | H35: 0 | J35: =IF('Budget Period #1'!J35>0,'Budget Period #1'!J35,"") ->  | K35: =IF('Budget Period #1'!K35>0,'Budget Period #1'!K35,"") ->  | L35: =IFERROR(VLOOKUP($K35,'Quick Lookup'!$C$3:$D$40,2,FALSE),"") ->  | M35: =SUMIF(SLRs!$B$2:$B$21,'Budget Period #4'!$L35,SLRs!$F$2:$F$21)*(1+Rates!$B$17)*(1+Rates!$B$18)*(1+Rates!$B$19) -> 0 | O35: 0 | P35: =IF('Budget Period #1'!P35>0,'Budget Period #1'!P35,"") -> 
G36: Total Other Personnel (B) | H36: =SUM(H26:H35) -> 0
G38: Total Salary, Wages and Fringe Benefits (A+B) | H38: =H23+H36 -> 0
B39: C. Equipment Description
B40: Equipment Item | G40: Quantity | H40: Funds Requested
A41: 1.) | B41: =IF('Budget Period #1'!B41>0,'Budget Period #1'!B41,"") -> 
A42: 2.) | B42: =IF('Budget Period #1'!B42>0,'Budget Period #1'!B42,"") -> 
A43: 3.) | B43: =IF('Budget Period #1'!B43>0,'Budget Period #1'!B43,"") -> 
A44: 4.) | B44: =IF('Budget Period #1'!B44>0,'Budget Period #1'!B44,"") -> 
A45: 5.) | B45: =IF('Budget Period #1'!B45>0,'Budget Period #1'!B45,"") -> 
A46: 6.) | B46: =IF('Budget Period #1'!B46>0,'Budget Period #1'!B46,"") -> 
A47: 7.) | B47: =IF('Budget Period #1'!B47>0,'Budget Period #1'!B47,"") -> 
A48: 8.) | B48: =IF('Budget Period #1'!B48>0,'Budget Period #1'!B48,"") -> 
A49: 9.) | B49: =IF('Budget Period #1'!B49>0,'Budget Period #1'!B49,"") -> 
A50: 10.) | B50: =IF('Budget Period #1'!B50>0,'Budget Period #1'!B50,"") -> 
G51: Total Equipment (C) | H51: =SUM(H41:H50) -> 0
B52: D. Travel
B53: Item | H53: Funds Requested
A54: 1.) | B54: Domestic Travel Costs (incl. Canada, Mexico, and US Possessions)
A55: 2.) | B55: Foreign Travel Costs
G56: Total Travel (D) | H56: =SUM(H54:H55) -> 0
B57: E. Participant/Trainee Support Costs
B58: Item | H58: Funds Requested
A59: 1.) | B59: Tuition/Fees/Health Insurance
A60: 2.) | B60: Stipends
A61: 3.) | B61: Travel
A62: 4.) | B62: Subsistence
A63: 5.) | B63: Other
F64: Number of Participant/Trainees
A65: NOTE: On #1-#5, enter total costs for ALL Participant/Trainees, not as a per participant cost. | G65: Total Participant/Trainee Support Costs (E) | H65: =SUM(H59:H63) -> 0
B66: F. Other Direct Costs
B67: Item | H67: Funds Requested
A68: 1.) | B68: Materials and Supplies
A69: 2.) | B69: Publication Costs
A70: 3.) | B70: Consultant Services | J70: Subawards / Consortium / Contractual Costs
A71: 4.) | B71: ADP/Computer Services | J71: Subawards | K71: National Labs | L71: Pass through
A72: 5.) | B72: Subawards/Consortium/Contractual Costs | H72: =J72+K72+L72 -> 0
A73: 6.) | B73: Equipment or Facility Rental/User Fees
A74: 7.) | B74: Alternation and Renovations
A75: 8.) | B75: Other
G76: Total Other Direct Costs (F) | H76: =SUM(H68:H75) -> 0
B77: G. Direct Costs
B78: Item | H78: Funds Requested
A79: 1.) | B79: Total Direct Costs (A-F) | H79: =H23+H36+H51+H56+H65+H76 -> 0
B81: H. Other Indirect Costs
B82: Item | G82: FY2017 Rates | H82: Funds Requested
A83: 1.) | B83: Salary, Wages & Fringe (Division staff) | F83: Program Support | G83: =Rates!B9 -> 0.9353 | H83: =ROUND((H36+SUMIF(P13:P22,'Quick Lookup'!H3,H13:H22))*G83,2) -> 0
A84: 2.) | B84: Salary, Wages & Fringe (Section staff) | F84: CSS Rate | G84: =Rates!B11 -> 0.6947 | H84: =ROUND(SUMIF(P13:P22,'Quick Lookup'!H4,H13:H22)*G84,2) -> 0
A85: 3.) | B85: General and Administrative (formula, Indirect on D & E) | G85: =Rates!B12 -> 0.1872 | H85: =ROUND((H56+H65)*G85,2) -> 0
A86: 4.) | B86: MSA (Materials/Services Acquisition) (formula, Indirect on C & F) | G86: =Rates!B10 -> 0.2631 | H86: =ROUND((H76+H51-K72-L72)*G86,2) -> 0
A87: 5.) | B87: Pass through | G87: =Rates!B15 -> 0.0429 | H87: =ROUND(L72*G87,2) -> 0
A88: 6.) | B88: Pass through (National Laboratories) | G88: =Rates!B14 -> 0.03 | H88: =ROUND(K72*G88,2) -> 0
G89: Total Indirect Costs (H) | H89: =SUM(H83:H88) -> 0
B91: I. Total Direct and Indirect Costs
B92: Item | H92: Funds Requested
A93: 1.) | B93: Total Direct and Indirect Costs (G+H) | H93: =H79+H89 -> 0

Sheet Budget Period #5
B1: ='Budget Period #1'!B1:E1 -> DOE National Laboratory Announcement | E1: =IF('Budget Period #1'!E1>0,'Budget Period #1'!E1,"") -> 
B2: Proposal Title | D2: =IF('Budget Period #1'!D2>0,'Budget Period #1'!D2,"") -> 
B3: Note: The budget submitted by the primary applicant must include all costs associated with the award.
B4: Budget Period Information
B6: Budget Period Start Date | E6: (per Program Announcement Guidelines) | J6: Selecting Job Category and Title will populate Band, Rate, and Project Role
B7: Budget Period End Date | E7: (per Program Announcement Guidelines) | J7: Adding hours will populate Months, Requested Salary, Fringe Benefits, and Funds Requested
J8: Options: Rate can be selected by band only. Project role can be customized.
B9: A. Senior/Key Person (required): | F9: Fringe Rate: | G9: =Rates!B6 -> 0.2975
F10: Fringe PostDoc: | G10: =Rates!B7 -> 0.2375 | J10: Labor Calculations (SLRs)
B12: Name | D12: Project Role | E12: Months | F12: Requested Salary ($) | G12: Fringe Benefits | H12: Funds Requested | J12: Category | K12: Job Title | L12: Band | M12: SLR + VO | N12: Hours | P12: SWF Type (for OH)
A13: 1.) | B13: =IF('Budget Period #1'!B13>0,'Budget Period #1'!B13,"") ->  | D13: =IF('Budget Period #1'!D13>0,'Budget Period #1'!D13,"") ->  | E13: =N13/(Rates!$B$22/12) -> 0 | F13: =ROUND(M13*N13,2) -> 0 | G13: =ROUND(F13*$G$9,2) -> 0 | H13: =F13+G13 -> 0 | J13: =IF('Budget Period #1'!J13>0,'Budget Period #1'!J13,"") -> Engineers | K13: =IF('Budget Period #1'!K13>0,'Budget Period #1'!K13,"") -> Senior Engineer | L13: =IFERROR(VLOOKUP($K13,'Quick Lookup'!$C$3:$D$40,2,FALSE),"") -> E5 | M13: =SUMIF(SLRs!$B$2:$B$21,'Budget Period #5'!$L13,SLRs!$F$2:$F$21)*(1+Rates!$B$17)*(1+Rates!$B$18)*(1+Rates!$B$19)*(1+Rates!$B$20) -> 80.47666421 | P13: =IF('Budget Period #1'!P13>0,'Budget Period #1'!P13,"") -> Division Staff
A14: 2.) | B14: =IF('Budget Period #1'!B14>0,'Budget Period #1'!B14,"") ->  | D14: =IF('Budget Period #1'!D14>0,'Budget Period #1'!D14,"") ->  | E14: =N14/(Rates!$B$22/12) -> 0 | F14: 0 | G14: 0 | H14: 0 | J14: =IF('Budget Period #1'!J14>0,'Budget Period #1'!J14,"") ->  | K14: =IF('Budget Period #1'!K14>0,'Budget Period #1'!K14,"") ->  | L14: =IFERROR(VLOOKUP($K14,'Quick Lookup'!$C$3:$D$40,2,FALSE),"") ->  | M14: =SUMIF(SLRs!$B$2:$B$21,'Budget Period #5'!$L14,SLRs!$F$2:$F$21)*(1+Rates!$B$17)*(1+Rates!$B$18)*(1+Rates!$B$19)*(1+Rates!$B$20) -> 0 | P14: =IF('Budget Period #1'!P14>0,'Budget Period #1'!P14,"") -> Division Staff
A15: 3.) | B15: =IF('Budget Period #1'!B15>0,'Budget Period #1'!B15,"") ->  | D15: =IF('Budget Period #1'!D15>0,'Budget Period #1'!D15,"") ->  | E15: =N15/(Rates!$B$22/12) -> 0 | F15: 0 | G15: 0 | H15: 0 | J15: =IF('Budget Period #1'!J15>0,'Budget Period #1'!J15,"") ->  | K15: =IF('Budget Period #1'!K15>0,'Budget Period #1'!K15,"") ->  | L15: =IFERROR(VLOOKUP($K15,'Quick Lookup'!$C$3:$D$40,2,FALSE),"") ->  | M15: =SUMIF(SLRs!$B$2:$B$21,'Budget Period #5'!$L15,SLRs!$F$2:$F$21)*(1+Rates!$B$17)*(1+Rates!$B$18)*(1+Rates!$B$19)*(1+Rates!$B$20) -> 0 | P15: =IF('Budget Period #1'!P15>0,'Budget Period #1'!P15,"") -> Division Staff
A16: 4.) | B16: =IF('Budget Period #1'!B16>0,'Budget Period #1'!B16,"") ->  | D16: =IF('Budget Period #1'!D16>0,'Budget Period #1'!D16,"") ->  | E16: =N16/(Rates!$B$22/12) -> 0 | F16: 0 | G16: 0 | H16: 0 | J16: =IF('Budget Period #1'!J16>0,'Budget Period #1'!J16,"") ->  | K16: =IF('Budget Period #1'!K16>0,'Budget Period #1'!K16,"") ->  | L16: =IFERROR(VLOOKUP($K16,'Quick Lookup'!$C$3:$D$40,2,FALSE),"") ->  | M16: =SUMIF(SLRs!$B$2:$B$21,'Budget Period #5'!$L16,SLRs!$F$2:$F$21)*(1+Rates!$B$17)*(1+Rates!$B$18)*(1+Rates!$B$19)*(1+Rates!$B$20) -> 0 | P16: =IF('Budget Period #1'!P16>0,'Budget Period #1'!P16,"") -> Division Staff
A17: 5.) | B17: =IF('Budget Period #1'!B17>0,'Budget Period #1'!B17,"") ->  | D17: =IF('Budget Period #1'!D17>0,'Budget Period #1'!D17,"") ->  | E17: =N17/(Rates!$B$22/12) -> 0 | F17: 0 | G17: 0 | H17: 0 | J17: =IF('Budget Period #1'!J17>0,'Budget Period #1'!J17,"") ->  | K17: =IF('Budget Period #1'!K17>0,'Budget Period #1'!K17,"") ->  | L17: =IFERROR(VLOOKUP($K17,'Quick Lookup'!$C$3:$D$40,2,FALSE),"") ->  | M17: =SUMIF(SLRs!$B$2:$B$21,'Budget Period #5'!$L17,SLRs!$F$2:$F$21)*(1+Rates!$B$17)*(1+Rates!$B$18)*(1+Rates!$B$19)*(1+Rates!$B$20) -> 0 | P17: =IF('Budget Period #1'!P17>0,'Budget Period #1'!P17,"") -> Division Staff
A18: 6.) | B18: =IF('Budget Period #1'!B18>0,'Budget Period #1'!B18,"") ->  | D18: =IF('Budget Period #1'!D18>0,'Budget Period #1'!D18,"") ->  | E18: =N18/(Rates!$B$22/12) -> 0 | F18: 0 | G18: 0 | H18: 0 | J18: =IF('Budget Period #1'!J18>0,'Budget Period #1'!J18,"") ->  | K18: =IF('Budget Period #1'!K18>0,'Budget Period #1'!K18,"") ->  | L18: =IFERROR(VLOOKUP($K18,'Quick Lookup'!$C$3:$D$40,2,FALSE),"") ->  | M18: =SUMIF(SLRs!$B$2:$B$21,'Budget Period #5'!$L18,SLRs!$F$2:$F$21)*(1+Rates!$B$17)*(1+Rates!$B$18)*(1+Rates!$B$19)*(1+Rates!$B$20) -> 0 | P18: =IF('Budget Period #1'!P18>0,'Budget Period #1'!P18,"") -> Division Staff
A19: 7.) | B19: =IF('Budget Period #1'!B19>0,'Budget Period #1'!B19,"") ->  | D19: =IF('Budget Period #1'!D19>0,'Budget Period #1'!D19,"") ->  | E19: =N19/(Rates!$B$22/12) -> 0 | F19: 0 | G19: 0 | H19: 0 | J19: =IF('Budget Period #1'!J19>0,'Budget Period #1'!J19,"") ->  | K19: =IF('Budget Period #1'!K19>0,'Budget Period #1'!K19,"") ->  | L19: =IFERROR(VLOOKUP($K19,'Quick Lookup'!$C$3:$D$40,2,FALSE),"") ->  | M19: =SUMIF(SLRs!$B$2:$B$21,'Budget Period #5'!$L19,SLRs!$F$2:$F$21)*(1+Rates!$B$17)*(1+Rates!$B$18)*(1+Rates!$B$19)*(1+Rates!$B$20) -> 0 | P19: =IF('Budget Period #1'!P19>0,'Budget Period #1'!P19,"") -> Division Staff
A20: 8.) | B20: =IF('Budget Period #1'!B20>0,'Budget Period #1'!B20,"") ->  | D20: =IF('Budget Period #1'!D20>0,'Budget Period #1'!D20,"") ->  | E20: =N20/(Rates!$B$22/12) -> 0 | F20: 0 | G20: 0 | H20: 0 | J20: =IF('Budget Period #1'!J20>0,'Budget Period #1'!J20,"") ->  | K20: =IF('Budget Period #1'!K20>0,'Budget Period #1'!K20,"") ->  | L20: =IFERROR(VLOOKUP($K20,'Quick Lookup'!$C$3:$D$40,2,FALSE),"") ->  | M20: =SUMIF(SLRs!$B$2:$B$21,'Budget Period #5'!$L20,SLRs!$F$2:$F$21)*(1+Rates!$B$17)*(1+Rates!$B$18)*(1+Rates!$B$19)*(1+Rates!$B$20) -> 0 | P20: =IF('Budget Period #1'!P20>0,'Budget Period #1'!P20,"") -> Division Staff
A21: 9.) | B21: =IF('Budget Period #1'!B21>0,'Budget Period #1'!B21,"") ->  | D21: =IF('Budget Period #1'!D21>0,'Budget Period #1'!D21,"") ->  | E21: =N21/(Rates!$B$22/12) -> 0 | F21: 0 | G21: 0 | H21: 0 | J21: =IF('Budget Period #1'!J21>0,'Budget Period #1'!J21,"") ->  | K21: =IF('Budget Period #1'!K21>0,'Budget Period #1'!K21,"") ->  | L21: =IFERROR(VLOOKUP($K21,'Quick Lookup'!$C$3:$D$40,2,FALSE),"") ->  | M21: =SUMIF(SLRs!$B$2:$B$21,'Budget Period #5'!$L21,SLRs!$F$2:$F$21)*(1+Rates!$B$17)*(1+Rates!$B$18)*(1+Rates!$B$19)*(1+Rates!$B$20) -> 0 | P21: =IF('Budget Period #1'!P21>0,'Budget Period #1'!P21,"") -> Division Staff
A22: 10.) | B22: =IF('Budget Period #1'!B22>0,'Budget Period #1'!B22,"") ->  | D22: =IF('Budget Period #1'!D22>0,'Budget Period #1'!D22,"") ->  | E22: =N22/(Rates!$B$22/12) -> 0 | F22: 0 | G22: 0 | H22: 0 | J22: =IF('Budget Period #1'!J22>0,'Budget Period #1'!J22,"") ->  | K22: =IF('Budget Period #1'!K22>0,'Budget Period #1'!K22,"") ->  | L22: =IFERROR(VLOOKUP($K22,'Quick Lookup'!$C$3:$D$40,2,FALSE),"") ->  | M22: =SUMIF(SLRs!$B$2:$B$21,'Budget Period #5'!$L22,SLRs!$F$2:$F$21)*(1+Rates!$B$17)*(1+Rates!$B$18)*(1+Rates!$B$19)*(1+Rates!$B$20) -> 0 | P22: =IF('Budget Period #1'!P22>0,'Budget Period #1'!P22,"") -> Division Staff
G23: Total Senior/Key Personnel (A) | H23: =SUM(H13:H22) -> 0
B24: B. Other Personnel
B25: # of Personnel | D25: Project Role | E25: Months | F25: Requested Salary ($) | G25: Fringe Benefits | H25: Funds Requested | P25: Project Role (to Group)
A26: 1.) | D26: Post Doctoral Associates | E26: =SUMIF($P$26:$P$35,$D26,$N$26:$N$35)/(Rates!$B$22/12) -> 0 | F26: =SUMIF($P$26:$P$35,$D26,$O$26:$O$35) -> 0 | G26: =ROUND(F26*$G$10,2) -> 0 | H26: =F26+G26 -> 0 | J26: =IF('Budget Period #1'!J26>0,'Budget Period #1'!J26,"") ->  | K26: =IF('Budget Period #1'!K26>0,'Budget Period #1'!K26,"") ->  | L26: =IFERROR(VLOOKUP($K26,'Quick Lookup'!$C$3:$D$40,2,FALSE),"") ->  | M26: =SUMIF(SLRs!$B$2:$B$21,'Budget Period #5'!$L26,SLRs!$F$2:$F$21)*(1+Rates!$B$17)*(1+Rates!$B$18)*(1+Rates!$B$19)*(1+Rates!$B$20) -> 0 | O26: =ROUND(N26*M26,2) -> 0 | P26: =IF('Budget Period #1'!P26>0,'Budget Period #1'!P26,"") -> 
A27: 2.) | D27: Graduate Students | E27: =SUMIF($P$26:$P$35,$D27,$N$26:$N$35)/(Rates!$B$22/12) -> 0 | F27: 0 | G27: =ROUND(F27*$G$9,2) -> 0 | H27: 0 | J27: =IF('Budget Period #1'!J27>0,'Budget Period #1'!J27,"") ->  | K27: =IF('Budget Period #1'!K27>0,'Budget Period #1'!K27,"") ->  | L27: =IFERROR(VLOOKUP($K27,'Quick Lookup'!$C$3:$D$40,2,FALSE),"") ->  | M27: =SUMIF(SLRs!$B$2:$B$21,'Budget Period #5'!$L27,SLRs!$F$2:$F$21)*(1+Rates!$B$17)*(1+Rates!$B$18)*(1+Rates!$B$19)*(1+Rates!$B$20) -> 0 | O27: 0 | P27: =IF('Budget Period #1'!P27>0,'Budget Period #1'!P27,"") -> 
A28: 3.) | D28: Undergraduate Students | E28: =SUMIF($P$26:$P$35,$D28,$N$26:$N$35)/(Rates!$B$22/12) -> 0 | F28: 0 | G28: 0 | H28: 0 | J28: =IF('Budget Period #1'!J28>0,'Budget Period #1'!J28,"") ->  | K28: =IF('Budget Period #1'!K28>0,'Budget Period #1'!K28,"") ->  | L28: =IFERROR(VLOOKUP($K28,'Quick Lookup'!$C$3:$D$40,2,FALSE),"") ->  | M28: =SUMIF(SLRs!$B$2:$B$21,'Budget Period #5'!$L28,SLRs!$F$2:$F$21)*(1+Rates!$B$17)*(1+Rates!$B$18)*(1+Rates!$B$19)*(1+Rates!$B$20) -> 0 | O28: 0 | P28: =IF('Budget Period #1'!P28>0,'Budget Period #1'!P28,"") -> 
A29: 4.) | D29: Secretarial/Clerical | E29: =SUMIF($P$26:$P$35,$D29,$N$26:$N$35)/(Rates!$B$22/12) -> 0 | F29: 0 | G29: 0 | H29: 0 | J29: =IF('Budget Period #1'!J29>0,'Budget Period #1'!J29,"") ->  | K29: =IF('Budget Period #1'!K29>0,'Budget Period #1'!K29,"") ->  | L29: =IFERROR(VLOOKUP($K29,'Quick Lookup'!$C$3:$D$40,2,FALSE),"") ->  | M29: =SUMIF(SLRs!$B$2:$B$21,'Budget Period #5'!$L29,SLRs!$F$2:$F$21)*(1+Rates!$B$17)*(1+Rates!$B$18)*(1+Rates!$B$19)*(1+Rates!$B$20) -> 0 | O29: 0 | P29: =IF('Budget Period #1'!P29>0,'Budget Period #1'!P29,"") -> 
A30: 5.) | D30: Engineers | E30: =SUMIF($P$26:$P$35,$D30,$N$26:$N$35)/(Rates!$B$22/12) -> 0 | F30: 0 | G30: 0 | H30: 0 | J30: =IF('Budget Period #1'!J30>0,'Budget Period #1'!J30,"") ->  | K30: =IF('Budget Period #1'!K30>0,'Budget Period #1'!K30,"") ->  | L30: =IFERROR(VLOOKUP($K30,'Quick Lookup'!$C$3:$D$40,2,FALSE),"") ->  | M30: =SUMIF(SLRs!$B$2:$B$21,'Budget Period #5'!$L30,SLRs!$F$2:$F$21)*(1+Rates!$B$17)*(1+Rates!$B$18)*(1+Rates!$B$19)*(1+Rates!$B$20) -> 0 | O30: 0 | P30: =IF('Budget Period #1'!P30>0,'Budget Period #1'!P30,"") -> 
A31: 6.) | D31: Technicians | E31: =SUMIF($P$26:$P$35,$D31,$N$26:$N$35)/(Rates!$B$22/12) -> 0 | F31: 0 | G31: 0 | H31: 0 | J31: =IF('Budget Period #1'!J31>0,'Budget Period #1'!J31,"") ->  | K31: =IF('Budget Period #1'!K31>0,'Budget Period #1'!K31,"") ->  | L31: =IFERROR(VLOOKUP($K31,'Quick Lookup'!$C$3:$D$40,2,FALSE),"") ->  | M31: =SUMIF(SLRs!$B$2:$B$21,'Budget Period #5'!$L31,SLRs!$F$2:$F$21)*(1+Rates!$B$17)*(1+Rates!$B$18)*(1+Rates!$B$19)*(1+Rates!$B$20) -> 0 | O31: 0 | P31: =IF('Budget Period #1'!P31>0,'Budget Period #1'!P31,"") -> 
A32: 7.) | D32: =IF('Budget Period #1'!D32>0,'Budget Period #1'!D32,"") ->  | E32: =SUMIF($P$26:$P$35,$D32,$N$26:$N$35)/(Rates!$B$22/12) -> 0 | F32: 0 | G32: 0 | H32: 0 | J32: =IF('Budget Period #1'!J32>0,'Budget Period #1'!J32,"") ->  | K32: =IF('Budget Period #1'!K32>0,'Budget Period #1'!K32,"") ->  | L32: =IFERROR(VLOOKUP($K32,'Quick Lookup'!$C$3:$D$40,2,FALSE),"") ->  | M32: =SUMIF(SLRs!$B$2:$B$21,'Budget Period #5'!$L32,SLRs!$F$2:$F$21)*(1+Rates!$B$17)*(1+Rates!$B$18)*(1+Rates!$B$19)*(1+Rates!$B$20) -> 0 | O32: 0 | P32: =IF('Budget Period #1'!P32>0,'Budget Period #1'!P32,"") -> 
A33: 8.) | D33: =IF('Budget Period #1'!D33>0,'Budget Period #1'!D33,"") ->  | E33: =SUMIF($P$26:$P$35,$D33,$N$26:$N$35)/(Rates!$B$22/12) -> 0 | F33: 0 | G33: 0 | H33: 0 | J33: =IF('Budget Period #1'!J33>0,'Budget Period #1'!J33,"") ->  | K33: =IF('Budget Period #1'!K33>0,'Budget Period #1'!K33,"") ->  | L33: =IFERROR(VLOOKUP($K33,'Quick Lookup'!$C$3:$D$40,2,FALSE),"") ->  | M33: =SUMIF(SLRs!$B$2:$B$21,'Budget Period #5'!$L33,SLRs!$F$2:$F$21)*(1+Rates!$B$17)*(1+Rates!$B$18)*(1+Rates!$B$19)*(1+Rates!$B$20) -> 0 | O33: 0 | P33: =IF('Budget Period #1'!P33>0,'Budget Period #1'!P33,"") -> 
A34: 9.) | D34: =IF('Budget Period #1'!D34>0,'Budget Period #1'!D34,"") ->  | E34: =SUMIF($P$26:$P$35,$D34,$N$26:$N$35)/(Rates!$B$22/12) -> 0 | F34: 0 | G34: 0 | H34: 0 | J34: =IF('Budget Period #1'!J34>0,'Budget Period #1'!J34,"") ->  | K34: =IF('Budget Period #1'!K34>0,'Budget Period #1'!K34,"") ->  | L34: =IFERROR(VLOOKUP($K34,'Quick Lookup'!$C$3:$D$40,2,FALSE),"") ->  | M34: =SUMIF(SLRs!$B$2:$B$21,'Budget Period #5'!$L34,SLRs!$F$2:$F$21)*(1+Rates!$B$17)*(1+Rates!$B$18)*(1+Rates!$B$19)*(1+Rates!$B$20) -> 0 | O34: 0 | P34: =IF('Budget Period #1'!P34>0,'Budget Period #1'!P34,"") -> 
A35: 10.) | D35: =IF('Budget Period #1'!D35>0,'Budget Period #1'!D35,"") ->  | E35: =SUMIF($P$26:$P$35,$D35,$N$26:$N$35)/(Rates!$B$22/12) -> 0 | F35: 0 | G35: 0 | H35: 0 | J35: =IF('Budget Period #1'!J35>0,'Budget Period #1'!J35,"") ->  | K35: =IF('Budget Period #1'!K35>0,'Budget Period #1'!K35,"") ->  | L35: =IFERROR(VLOOKUP($K35,'Quick Lookup'!$C$3:$D$40,2,FALSE),"") ->  | M35: =SUMIF(SLRs!$B$2:$B$21,'Budget Period #5'!$L35,SLRs!$F$2:$F$21)*(1+Rates!$B$17)*(1+Rates!$B$18)*(1+Rates!$B$19)*(1+Rates!$B$20) -> 0 | O35: 0 | P35: =IF('Budget Period #1'!P35>0,'Budget Period #1'!P35,"") -> 
G36: Total Other Personnel (B) | H36: =SUM(H26:H35) -> 0
G38: Total Salary, Wages and Fringe Benefits (A+B) | H38: =H23+H36 -> 0
B39: C. Equipment Description
B40: Equipment Item | G40: Quantity | H40: Funds Requested
A41: 1.) | B41: =IF('Budget Period #1'!B41>0,'Budget Period #1'!B41,"") -> 
A42: 2.) | B42: =IF('Budget Period #1'!B42>0,'Budget Period #1'!B42,"") -> 
A43: 3.) | B43: =IF('Budget Period #1'!B43>0,'Budget Period #1'!B43,"") -> 
A44: 4.) | B44: =IF('Budget Period #1'!B44>0,'Budget Period #1'!B44,"") -> 
A45: 5.) | B45: =IF('Budget Period #1'!B45>0,'Budget Period #1'!B45,"") -> 
A46: 6.) | B46: =IF('Budget Period #1'!B46>0,'Budget Period #1'!B46,"") -> 
A47: 7.) | B47: =IF('Budget Period #1'!B47>0,'Budget Period #1'!B47,"") -> 
A48: 8.) | B48: =IF('Budget Period #1'!B48>0,'Budget Period #1'!B48,"") -> 
A49: 9.) | B49: =IF('Budget Period #1'!B49>0,'Budget Period #1'!B49,"") -> 
A50: 10.) | B50: =IF('Budget Period #1'!B50>0,'Budget Period #1'!B50,"") -> 
G51: Total Equipment (C) | H51: =SUM(H41:H50) -> 0
B52: D. Travel
B53: Item | H53: Funds Requested
A54: 1.) | B54: Domestic Travel Costs (incl. Canada, Mexico, and US Possessions)
A55: 2.) | B55: Foreign Travel Costs
G56: Total Travel (D) | H56: =SUM(H54:H55) -> 0
B57: E. Participant/Trainee Support Costs
B58: Item | H58: Funds Requested
A59: 1.) | B59: Tuition/Fees/Health Insurance
A60: 2.) | B60: Stipends
A61: 3.) | B61: Travel
A62: 4.) | B62: Subsistence
A63: 5.) | B63: Other
F64: Number of Participant/Trainees
A65: NOTE: On #1-#5, enter total costs for ALL Participant/Trainees, not as a per participant cost. | G65: Total Participant/Trainee Support Costs (E) | H65: =SUM(H59:H63) -> 0
B66: F. Other Direct Costs
B67: Item | H67: Funds Requested
A68: 1.) | B68: Materials and Supplies
A69: 2.) | B69: Publication Costs
A70: 3.) | B70: Consultant Services | J70: Subawards / Consortium / Contractual Costs
A71: 4.) | B71: ADP/Computer Services | J71: Subawards | K71: National Labs | L71: Pass through
A72: 5.) | B72: Subawards/Consortium/Contractual Costs | H72: =J72+K72+L72 -> 0
A73: 6.) | B73: Equipment or Facility Rental/User Fees
A74: 7.) | B74: Alternation and Renovations
A75: 8.) | B75: Other
G76: Total Other Direct Costs (F) | H76: =SUM(H68:H75) -> 0
B77: G. Direct Costs
B78: Item | H78: Funds Requested
A79: 1.) | B79: Total Direct Costs (A-F) | H79: =H23+H36+H51+H56+H65+H76 -> 0
B81: H. Other Indirect Costs
B82: Item | G82: FY2017 Rates | H82: Funds Requested
A83: 1.) | B83: Salary, Wages & Fringe (Division staff) | F83: Program Support | G83: =Rates!B9 -> 0.9353 | H83: =ROUND((H36+SUMIF(P13:P22,'Quick Lookup'!H3,H13:H22))*G83,2) -> 0
A84: 2.) | B84: Salary, Wages & Fringe (Section staff) | F84: CSS Rate | G84: =Rates!B11 -> 0.6947 | H84: =ROUND(SUMIF(P13:P22,'Quick Lookup'!H4,H13:H22)*G84,2) -> 0
A85: 3.) | B85: General and Administrative (formula, Indirect on D & E) | G85: =Rates!B12 -> 0.1872 | H85: =ROUND((H56+H65)*G85,2) -> 0
A86: 4.) | B86: MSA (Materials/Services Acquisition) (formula, Indirect on C & F) | G86: =Rates!B10 -> 0.2631 | H86: =ROUND((H76+H51-K72-L72)*G86,2) -> 0
A87: 5.) | B87: Pass through | G87: =Rates!B15 -> 0.0429 | H87: =ROUND(L72*G87,2) -> 0
A88: 6.) | B88: Pass through (National Laboratories) | G88: =Rates!B14 -> 0.03 | H88: =ROUND(K72*G88,2) -> 0
G89: Total Indirect Costs (H) | H89: =SUM(H83:H88) -> 0
B91: I. Total Direct and Indirect Costs
B92: Item | H92: Funds Requested
A93: 1.) | B93: Total Direct and Indirect Costs (G+H) | H93: =H79+H89 -> 0

Sheet Budget Summary
B1: ='Budget Period #1'!B1:E1 -> DOE National Laboratory Announcement | E1: =IF('Budget Period #1'!E1>0,'Budget Period #1'!E1,"") -> 
B2: Proposal Title | D2: =IF('Budget Period #1'!D2>0,'Budget Period #1'!D2,"") -> 
B3: Note: The budget submitted by the primary applicant must include all costs associated with the award.
B4: Budget Period Information
B6: Budget Period Start Date | E6: (per Program Announcement Guidelines)
B7: Budget Period End Date | E7: (per Program Announcement Guidelines)
B9: A. Senior/Key Person (required): | F9: Fringe Rate: | G9: =Rates!B6 -> 0.2975
F10: Fringe PostDoc: | G10: =Rates!B7 -> 0.2375
B12: Name | D12: Project Role | E12: Months | F12: Requested Salary ($) | G12: Fringe Benefits | H12: Funds Requested
A13: 1.) | B13: =IF('Budget Period #1'!B13>0,'Budget Period #1'!B13,"") ->  | D13: =IF('Budget Period #1'!D13>0,'Budget Period #1'!D13,"") ->  | E13: ='Budget Period #1'!E13+'Budget Period #2'!E13+'Budget Period #3'!E13+'Budget Period #4'!E13+'Budget Period #5'!E13 -> 0 | F13: ='Budget Period #1'!F13+'Budget Period #2'!F13+'Budget Period #3'!F13+'Budget Period #4'!F13+'Budget Period #5'!F13 -> 0 | G13: ='Budget Period #1'!G13+'Budget Period #2'!G13+'Budget Period #3'!G13+'Budget Period #4'!G13+'Budget Period #5'!G13 -> 0 | H13: =F13+G13 -> 0
A14: 2.) | B14: =IF('Budget Period #1'!B14>0,'Budget Period #1'!B14,"") ->  | D14: =IF('Budget Period #1'!D14>0,'Budget Period #1'!D14,"") ->  | E14: ='Budget Period #1'!E14+'Budget Period #2'!E14+'Budget Period #3'!E14+'Budget Period #4'!E14+'Budget Period #5'!E14 -> 0 | F14: ='Budget Period #1'!F14+'Budget Period #2'!F14+'Budget Period #3'!F14+'Budget Period #4'!F14+'Budget Period #5'!F14 -> 0 | G14: ='Budget Period #1'!G14+'Budget Period #2'!G14+'Budget Period #3'!G14+'Budget Period #4'!G14+'Budget Period #5'!G14 -> 0 | H14: 0
A15: 3.) | B15: =IF('Budget Period #1'!B15>0,'Budget Period #1'!B15,"") ->  | D15: =IF('Budget Period #1'!D15>0,'Budget Period #1'!D15,"") ->  | E15: ='Budget Period #1'!E15+'Budget Period #2'!E15+'Budget Period #3'!E15+'Budget Period #4'!E15+'Budget Period #5'!E15 -> 0 | F15: ='Budget Period #1'!F15+'Budget Period #2'!F15+'Budget Period #3'!F15+'Budget Period #4'!F15+'Budget Period #5'!F15 -> 0 | G15: ='Budget Period #1'!G15+'Budget Period #2'!G15+'Budget Period #3'!G15+'Budget Period #4'!G15+'Budget Period #5'!G15 -> 0 | H15: 0
A16: 4.) | B16: =IF('Budget Period #1'!B16>0,'Budget Period #1'!B16,"") ->  | D16: =IF('Budget Period #1'!D16>0,'Budget Period #1'!D16,"") ->  | E16: ='Budget Period #1'!E16+'Budget Period #2'!E16+'Budget Period #3'!E16+'Budget Period #4'!E16+'Budget Period #5'!E16 -> 0 | F16: ='Budget Period #1'!F16+'Budget Period #2'!F16+'Budget Period #3'!F16+'Budget Period #4'!F16+'Budget Period #5'!F16 -> 0 | G16: ='Budget Period #1'!G16+'Budget Period #2'!G16+'Budget Period #3'!G16+'Budget Period #4'!G16+'Budget Period #5'!G16 -> 0 | H16: 0
A17: 5.) | B17: =IF('Budget Period #1'!B17>0,'Budget Period #1'!B17,"") ->  | D17: =IF('Budget Period #1'!D17>0,'Budget Period #1'!D17,"") ->  | E17: ='Budget Period #1'!E17+'Budget Period #2'!E17+'Budget Period #3'!E17+'Budget Period #4'!E17+'Budget Period #5'!E17 -> 0 | F17: ='Budget Period #1'!F17+'Budget Period #2'!F17+'Budget Period #3'!F17+'Budget Period #4'!F17+'Budget Period #5'!F17 -> 0 | G17: ='Budget Period #1'!G17+'Budget Period #2'!G17+'Budget Period #3'!G17+'Budget Period #4'!G17+'Budget Period #5'!G17 -> 0 | H17: 0
A18: 6.) | B18: =IF('Budget Period #1'!B18>0,'Budget Period #1'!B18,"") ->  | D18: =IF('Budget Period #1'!D18>0,'Budget Period #1'!D18,"") ->  | E18: ='Budget Period #1'!E18+'Budget Period #2'!E18+'Budget Period #3'!E18+'Budget Period #4'!E18+'Budget Period #5'!E18 -> 0 | F18: ='Budget Period #1'!F18+'Budget Period #2'!F18+'Budget Period #3'!F18+'Budget Period #4'!F18+'Budget Period #5'!F18 -> 0 | G18: ='Budget Period #1'!G18+'Budget Period #2'!G18+'Budget Period #3'!G18+'Budget Period #4'!G18+'Budget Period #5'!G18 -> 0 | H18: 0
A19: 7.) | B19: =IF('Budget Period #1'!B19>0,'Budget Period #1'!B19,"") ->  | D19: =IF('Budget Period #1'!D19>0,'Budget Period #1'!D19,"") ->  | E19: ='Budget Period #1'!E19+'Budget Period #2'!E19+'Budget Period #3'!E19+'Budget Period #4'!E19+'Budget Period #5'!E19 -> 0 | F19: ='Budget Period #1'!F19+'Budget Period #2'!F19+'Budget Period #3'!F19+'Budget Period #4'!F19+'Budget Period #5'!F19 -> 0 | G19: ='Budget Period #1'!G19+'Budget Period #2'!G19+'Budget Period #3'!G19+'Budget Period #4'!G19+'Budget Period #5'!G19 -> 0 | H19: 0
A20: 8.) | B20: =IF('Budget Period #1'!B20>0,'Budget Period #1'!B20,"") ->  | D20: =IF('Budget Period #1'!D20>0,'Budget Period #1'!D20,"") ->  | E20: ='Budget Period #1'!E20+'Budget Period #2'!E20+'Budget Period #3'!E20+'Budget Period #4'!E20+'Budget Period #5'!E20 -> 0 | F20: ='Budget Period #1'!F20+'Budget Period #2'!F20+'Budget Period #3'!F20+'Budget Period #4'!F20+'Budget Period #5'!F20 -> 0 | G20: ='Budget Period #1'!G20+'Budget Period #2'!G20+'Budget Period #3'!G20+'Budget Period #4'!G20+'Budget Period #5'!G20 -> 0 | H20: 0
A21: 9.) | B21: =IF('Budget Period #1'!B21>0,'Budget Period #1'!B21,"") ->  | D21: =IF('Budget Period #1'!D21>0,'Budget Period #1'!D21,"") ->  | E21: ='Budget Period #1'!E21+'Budget Period #2'!E21+'Budget Period #3'!E21+'Budget Period #4'!E21+'Budget Period #5'!E21 -> 0 | F21: ='Budget Period #1'!F21+'Budget Period #2'!F21+'Budget Period #3'!F21+'Budget Period #4'!F21+'Budget Period #5'!F21 -> 0 | G21: ='Budget Period #1'!G21+'Budget Period #2'!G21+'Budget Period #3'!G21+'Budget Period #4'!G21+'Budget Period #5'!G21 -> 0 | H21: 0
A22: 10.) | B22: =IF('Budget Period #1'!B22>0,'Budget Period #1'!B22,"") ->  | D22: =IF('Budget Period #1'!D22>0,'Budget Period #1'!D22,"") ->  | E22: ='Budget Period #1'!E22+'Budget Period #2'!E22+'Budget Period #3'!E22+'Budget Period #4'!E22+'Budget Period #5'!E22 -> 0 | F22: ='Budget Period #1'!F22+'Budget Period #2'!F22+'Budget Period #3'!F22+'Budget Period #4'!F22+'Budget Period #5'!F22 -> 0 | G22: ='Budget Period #1'!G22+'Budget Period #2'!G22+'Budget Period #3'!G22+'Budget Period #4'!G22+'Budget Period #5'!G22 -> 0 | H22: 0
G23: Total Senior/Key Personnel (A) | H23: =SUM(H13:H22) -> 0
B24: B. Other Personnel
B25: # of Personnel | D25: Project Role | E25: Months | F25: Requested Salary ($) | G25: Fringe Benefits | H25: Funds Requested
A26: 1.) | B26: ='Budget Period #1'!B26+'Budget Period #2'!B26+'Budget Period #3'!B26+'Budget Period #4'!B26+'Budget Period #5'!B26 -> 0 | D26: Post Doctoral Associates | E26: ='Budget Period #1'!E26+'Budget Period #2'!E26+'Budget Period #3'!E26+'Budget Period #4'!E26+'Budget Period #5'!E26 -> 0 | F26: ='Budget Period #1'!F26+'Budget Period #2'!F26+'Budget Period #3'!F26+'Budget Period #4'!F26+'Budget Period #5'!F26 -> 0 | G26: ='Budget Period #1'!G26+'Budget Period #2'!G26+'Budget Period #3'!G26+'Budget Period #4'!G26+'Budget Period #5'!G26 -> 0 | H26: =F26+G26 -> 0
A27: 2.) | B27: ='Budget Period #1'!B27+'Budget Period #2'!B27+'Budget Period #3'!B27+'Budget Period #4'!B27+'Budget Period #5'!B27 -> 0 | D27: Graduate Students | E27: ='Budget Period #1'!E27+'Budget Period #2'!E27+'Budget Period #3'!E27+'Budget Period #4'!E27+'Budget Period #5'!E27 -> 0 | F27: ='Budget Period #1'!F27+'Budget Period #2'!F27+'Budget Period #3'!F27+'Budget Period #4'!F27+'Budget Period #5'!F27 -> 0 | G27: ='Budget Period #1'!G27+'Budget Period #2'!G27+'Budget Period #3'!G27+'Budget Period #4'!G27+'Budget Period #5'!G27 -> 0 | H27: 0
A28: 3.) | B28: ='Budget Period #1'!B28+'Budget Period #2'!B28+'Budget Period #3'!B28+'Budget Period #4'!B28+'Budget Period #5'!B28 -> 0 | D28: Undergraduate Students | E28: ='Budget Period #1'!E28+'Budget Period #2'!E28+'Budget Period #3'!E28+'Budget Period #4'!E28+'Budget Period #5'!E28 -> 0 | F28: ='Budget Period #1'!F28+'Budget Period #2'!F28+'Budget Period #3'!F28+'Budget Period #4'!F28+'Budget Period #5'!F28 -> 0 | G28: ='Budget Period #1'!G28+'Budget Period #2'!G28+'Budget Period #3'!G28+'Budget Period #4'!G28+'Budget Period #5'!G28 -> 0 | H28: 0
A29: 4.) | B29: ='Budget Period #1'!B29+'Budget Period #2'!B29+'Budget Period #3'!B29+'Budget Period #4'!B29+'Budget Period #5'!B29 -> 0 | D29: Secretarial/Clerical | E29: ='Budget Period #1'!E29+'Budget Period #2'!E29+'Budget Period #3'!E29+'Budget Period #4'!E29+'Budget Period #5'!E29 -> 0 | F29: ='Budget Period #1'!F29+'Budget Period #2'!F29+'Budget Period #3'!F29+'Budget Period #4'!F29+'Budget Period #5'!F29 -> 0 | G29: ='Budget Period #1'!G29+'Budget Period #2'!G29+'Budget Period #3'!G29+'Budget Period #4'!G29+'Budget Period #5'!G29 -> 0 | H29: 0
A30: 5.) | B30: ='Budget Period #1'!B30+'Budget Period #2'!B30+'Budget Period #3'!B30+'Budget Period #4'!B30+'Budget Period #5'!B30 -> 0 | D30: Engineers | E30: ='Budget Period #1'!E30+'Budget Period #2'!E30+'Budget Period #3'!E30+'Budget Period #4'!E30+'Budget Period #5'!E30 -> 0 | F30: ='Budget Period #1'!F30+'Budget Period #2'!F30+'Budget Period #3'!F30+'Budget Period #4'!F30+'Budget Period #5'!F30 -> 0 | G30: ='Budget Period #1'!G30+'Budget Period #2'!G30+'Budget Period #3'!G30+'Budget Period #4'!G30+'Budget Period #5'!G30 -> 0 | H30: 0
A31: 6.) | B31: ='Budget Period #1'!B31+'Budget Period #2'!B31+'Budget Period #3'!B31+'Budget Period #4'!B31+'Budget Period #5'!B31 -> 0 | D31: Technicians | E31: ='Budget Period #1'!E31+'Budget Period #2'!E31+'Budget Period #3'!E31+'Budget Period #4'!E31+'Budget Period #5'!E31 -> 0 | F31: ='Budget Period #1'!F31+'Budget Period #2'!F31+'Budget Period #3'!F31+'Budget Period #4'!F31+'Budget Period #5'!F31 -> 0 | G31: ='Budget Period #1'!G31+'Budget Period #2'!G31+'Budget Period #3'!G31+'Budget Period #4'!G31+'Budget Period #5'!G31 -> 0 | H31: 0
A32: 7.) | B32: ='Budget Period #1'!B32+'Budget Period #2'!B32+'Budget Period #3'!B32+'Budget Period #4'!B32+'Budget Period #5'!B32 -> 0 | D32: =IF('Budget Period #1'!D32>0,'Budget Period #1'!D32,"") ->  | E32: ='Budget Period #1'!E32+'Budget Period #2'!E32+'Budget Period #3'!E32+'Budget Period #4'!E32+'Budget Period #5'!E32 -> 0 | F32: ='Budget Period #1'!F32+'Budget Period #2'!F32+'Budget Period #3'!F32+'Budget Period #4'!F32+'Budget Period #5'!F32 -> 0 | G32: ='Budget Period #1'!G32+'Budget Period #2'!G32+'Budget Period #3'!G32+'Budget Period #4'!G32+'Budget Period #5'!G32 -> 0 | H32: 0
A33: 8.) | B33: ='Budget Period #1'!B33+'Budget Period #2'!B33+'Budget Period #3'!B33+'Budget Period #4'!B33+'Budget Period #5'!B33 -> 0 | D33: =IF('Budget Period #1'!D33>0,'Budget Period #1'!D33,"") ->  | E33: ='Budget Period #1'!E33+'Budget Period #2'!E33+'Budget Period #3'!E33+'Budget Period #4'!E33+'Budget Period #5'!E33 -> 0 | F33: ='Budget Period #1'!F33+'Budget Period #2'!F33+'Budget Period #3'!F33+'Budget Period #4'!F33+'Budget Period #5'!F33 -> 0 | G33: ='Budget Period #1'!G33+'Budget Period #2'!G33+'Budget Period #3'!G33+'Budget Period #4'!G33+'Budget Period #5'!G33 -> 0 | H33: 0
A34: 9.) | B34: ='Budget Period #1'!B34+'Budget Period #2'!B34+'Budget Period #3'!B34+'Budget Period #4'!B34+'Budget Period #5'!B34 -> 0 | D34: =IF('Budget Period #1'!D34>0,'Budget Period #1'!D34,"") ->  | E34: ='Budget Period #1'!E34+'Budget Period #2'!E34+'Budget Period #3'!E34+'Budget Period #4'!E34+'Budget Period #5'!E34 -> 0 | F34: ='Budget Period #1'!F34+'Budget Period #2'!F34+'Budget Period #3'!F34+'Budget Period #4'!F34+'Budget Period #5'!F34 -> 0 | G34: ='Budget Period #1'!G34+'Budget Period #2'!G34+'Budget Period #3'!G34+'Budget Period #4'!G34+'Budget Period #5'!G34 -> 0 | H34: 0
A35: 10.) | B35: ='Budget Period #1'!B35+'Budget Period #2'!B35+'Budget Period #3'!B35+'Budget Period #4'!B35+'Budget Period #5'!B35 -> 0 | D35: =IF('Budget Period #1'!D35>0,'Budget Period #1'!D35,"") ->  | E35: ='Budget Period #1'!E35+'Budget Period #2'!E35+'Budget Period #3'!E35+'Budget Period #4'!E35+'Budget Period #5'!E35 -> 0 | F35: ='Budget Period #1'!F35+'Budget Period #2'!F35+'Budget Period #3'!F35+'Budget Period #4'!F35+'Budget Period #5'!F35 -> 0 | G35: ='Budget Period #1'!G35+'Budget Period #2'!G35+'Budget Period #3'!G35+'Budget Period #4'!G35+'Budget Period #5'!G35 -> 0 | H35: 0
G36: Total Other Personnel (B) | H36: =SUM(H26:H35) -> 0
G38: Total Salary, Wages and Fringe Benefits (A+B) | H38: =H23+H36 -> 0
B39: C. Equipment Description
B40: Equipment Item | G40: Quantity | H40: Funds Requested
A41: 1.) | B41: =IF('Budget Period #1'!B41>0,'Budget Period #1'!B41,"") ->  | G41: ='Budget Period #1'!G41+'Budget Period #2'!G41+'Budget Period #3'!G41+'Budget Period #4'!G41+'Budget Period #5'!G41 -> 0 | H41: ='Budget Period #1'!H41+'Budget Period #2'!H41+'Budget Period #3'!H41+'Budget Period #4'!H41+'Budget Period #5'!H41 -> 0
A42: 2.) | B42: =IF('Budget Period #1'!B42>0,'Budget Period #1'!B42,"") ->  | G42: ='Budget Period #1'!G42+'Budget Period #2'!G42+'Budget Period #3'!G42+'Budget Period #4'!G42+'Budget Period #5'!G42 -> 0 | H42: ='Budget Period #1'!H42+'Budget Period #2'!H42+'Budget Period #3'!H42+'Budget Period #4'!H42+'Budget Period #5'!H42 -> 0
A43: 3.) | B43: =IF('Budget Period #1'!B43>0,'Budget Period #1'!B43,"") ->  | G43: ='Budget Period #1'!G43+'Budget Period #2'!G43+'Budget Period #3'!G43+'Budget Period #4'!G43+'Budget Period #5'!G43 -> 0 | H43: ='Budget Period #1'!H43+'Budget Period #2'!H43+'Budget Period #3'!H43+'Budget Period #4'!H43+'Budget Period #5'!H43 -> 0
A44: 4.) | B44: =IF('Budget Period #1'!B44>0,'Budget Period #1'!B44,"") ->  | G44: ='Budget Period #1'!G44+'Budget Period #2'!G44+'Budget Period #3'!G44+'Budget Period #4'!G44+'Budget Period #5'!G44 -> 0 | H44: ='Budget Period #1'!H44+'Budget Period #2'!H44+'Budget Period #3'!H44+'Budget Period #4'!H44+'Budget Period #5'!H44 -> 0
A45: 5.) | B45: =IF('Budget Period #1'!B45>0,'Budget Period #1'!B45,"") ->  | G45: ='Budget Period #1'!G45+'Budget Period #2'!G45+'Budget Period #3'!G45+'Budget Period #4'!G45+'Budget Period #5'!G45 -> 0 | H45: ='Budget Period #1'!H45+'Budget Period #2'!H45+'Budget Period #3'!H45+'Budget Period #4'!H45+'Budget Period #5'!H45 -> 0
A46: 6.) | B46: =IF('Budget Period #1'!B46>0,'Budget Period #1'!B46,"") ->  | G46: ='Budget Period #1'!G46+'Budget Period #2'!G46+'Budget Period #3'!G46+'Budget Period #4'!G46+'Budget Period #5'!G46 -> 0 | H46: ='Budget Period #1'!H46+'Budget Period #2'!H46+'Budget Period #3'!H46+'Budget Period #4'!H46+'Budget Period #5'!H46 -> 0
A47: 7.) | B47: =IF('Budget Period #1'!B47>0,'Budget Period #1'!B47,"") ->  | G47: ='Budget Period #1'!G47+'Budget Period #2'!G47+'Budget Period #3'!G47+'Budget Period #4'!G47+'Budget Period #5'!G47 -> 0 | H47: ='Budget Period #1'!H47+'Budget Period #2'!H47+'Budget Period #3'!H47+'Budget Period #4'!H47+'Budget Period #5'!H47 -> 0
A48: 8.) | B48: =IF('Budget Period #1'!B48>0,'Budget Period #1'!B48,"") ->  | G48: ='Budget Period #1'!G48+'Budget Period #2'!G48+'Budget Period #3'!G48+'Budget Period #4'!G48+'Budget Period #5'!G48 -> 0 | H48: ='Budget Period #1'!H48+'Budget Period #2'!H48+'Budget Period #3'!H48+'Budget Period #4'!H48+'Budget Period #5'!H48 -> 0
A49: 9.) | B49: =IF('Budget Period #1'!B49>0,'Budget Period #1'!B49,"") ->  | G49: ='Budget Period #1'!G49+'Budget Period #2'!G49+'Budget Period #3'!G49+'Budget Period #4'!G49+'Budget Period #5'!G49 -> 0 | H49: ='Budget Period #1'!H49+'Budget Period #2'!H49+'Budget Period #3'!H49+'Budget Period #4'!H49+'Budget Period #5'!H49 -> 0
A50: 10.) | B50: =IF('Budget Period #1'!B50>0,'Budget Period #1'!B50,"") ->  | G50: ='Budget Period #1'!G50+'Budget Period #2'!G50+'Budget Period #3'!G50+'Budget Period #4'!G50+'Budget Period #5'!G50 -> 0 | H50: ='Budget Period #1'!H50+'Budget Period #2'!H50+'Budget Period #3'!H50+'Budget Period #4'!H50+'Budget Period #5'!H50 -> 0
G51: Total Equipment (C) | H51: =SUM(H41:H50) -> 0
B52: D. Travel
B53: Item | H53: Funds Requested
A54: 1.) | B54: Domestic Travel Costs (incl. Canada, Mexico, and US Possessions) | H54: ='Budget Period #1'!H54+'Budget Period #2'!H54+'Budget Period #3'!H54+'Budget Period #4'!H54+'Budget Period #5'!H54 -> 0
A55: 2.) | B55: Foreign Travel Costs | H55: ='Budget Period #1'!H55+'Budget Period #2'!H55+'Budget Period #3'!H55+'Budget Period #4'!H55+'Budget Period #5'!H55 -> 0
G56: Total Travel (D) | H56: =SUM(H54:H55) -> 0
B57: E. Participant/Trainee Support Costs
B58: Item | H58: Funds Requested
A59: 1.) | B59: Tuition/Fees/Health Insurance | H59: ='Budget Period #1'!H59+'Budget Period #2'!H59+'Budget Period #3'!H59+'Budget Period #4'!H59+'Budget Period #5'!H59 -> 0
A60: 2.) | B60: Stipends | H60: ='Budget Period #1'!H60+'Budget Period #2'!H60+'Budget Period #3'!H60+'Budget Period #4'!H60+'Budget Period #5'!H60 -> 0
A61: 3.) | B61: Travel | H61: ='Budget Period #1'!H61+'Budget Period #2'!H61+'Budget Period #3'!H61+'Budget Period #4'!H61+'Budget Period #5'!H61 -> 0
A62: 4.) | B62: Subsistence | H62: ='Budget Period #1'!H62+'Budget Period #2'!H62+'Budget Period #3'!H62+'Budget Period #4'!H62+'Budget Period #5'!H62 -> 0
A63: 5.) | B63: Other | H63: ='Budget Period #1'!H63+'Budget Period #2'!H63+'Budget Period #3'!H63+'Budget Period #4'!H63+'Budget Period #5'!H63 -> 0
F64: Number of Participant/Trainees | G64: ='Budget Period #1'!G64+'Budget Period #2'!G64+'Budget Period #3'!G64+'Budget Period #4'!G64+'Budget Period #5'!G64 -> 0
A65: NOTE: On #1-#5, enter total costs for ALL Participant/Trainees, not as a per participant cost. | G65: Total Participant/Trainee Support Costs (E) | H65: =SUM(H59:H63) -> 0
B66: F. Other Direct Costs
B67: Item | H67: Funds Requested
A68: 1.) | B68: Materials and Supplies | H68: ='Budget Period #1'!H68+'Budget Period #2'!H68+'Budget Period #3'!H68+'Budget Period #4'!H68+'Budget Period #5'!H68 -> 0
A69: 2.) | B69: Publication Costs | H69: ='Budget Period #1'!H69+'Budget Period #2'!H69+'Budget Period #3'!H69+'Budget Period #4'!H69+'Budget Period #5'!H69 -> 0
A70: 3.) | B70: Consultant Services | H70: ='Budget Period #1'!H70+'Budget Period #2'!H70+'Budget Period #3'!H70+'Budget Period #4'!H70+'Budget Period #5'!H70 -> 0 | J70: Subawards / Consortium / Contractual Costs
A71: 4.) | B71: ADP/Computer Services | H71: ='Budget Period #1'!H71+'Budget Period #2'!H71+'Budget Period #3'!H71+'Budget Period #4'!H71+'Budget Period #5'!H71 -> 0 | J71: Subawards | K71: National Labs | L71: Pass through
A72: 5.) | B72: Subawards/Consortium/Contractual Costs | H72: ='Budget Period #1'!H72+'Budget Period #2'!H72+'Budget Period #3'!H72+'Budget Period #4'!H72+'Budget Period #5'!H72 -> 0 | J72: ='Budget Period #1'!J72+'Budget Period #2'!J72+'Budget Period #3'!J72+'Budget Period #4'!J72+'Budget Period #5'!J72 -> 0 | K72: ='Budget Period #1'!K72+'Budget Period #2'!K72+'Budget Period #3'!K72+'Budget Period #4'!K72+'Budget Period #5'!K72 -> 0 | L72: ='Budget Period #1'!L72+'Budget Period #2'!L72+'Budget Period #3'!L72+'Budget Period #4'!L72+'Budget Period #5'!L72 -> 0
A73: 6.) | B73: Equipment or Facility Rental/User Fees | H73: ='Budget Period #1'!H73+'Budget Period #2'!H73+'Budget Period #3'!H73+'Budget Period #4'!H73+'Budget Period #5'!H73 -> 0
A74: 7.) | B74: Alternation and Renovations | H74: ='Budget Period #1'!H74+'Budget Period #2'!H74+'Budget Period #3'!H74+'Budget Period #4'!H74+'Budget Period #5'!H74 -> 0
A75: 8.) | B75: Other | H75: ='Budget Period #1'!H75+'Budget Period #2'!H75+'Budget Period #3'!H75+'Budget Period #4'!H75+'Budget Period #5'!H75 -> 0
G76: Total Other Direct Costs (F) | H76: =SUM(H68:H75) -> 0
B77: G. Direct Costs
B78: Item | H78: Funds Requested
A79: 1.) | B79: Total Direct Costs (A-F) | H79: =H23+H36+H51+H56+H65+H76 -> 0
B81: H. Other Indirect Costs
B82: Item | G82: FY2017 Rates | H82: Funds Requested
A83: 1.) | B83: Salary, Wages & Fringe (Division staff) | F83: Program Support | G83: =Rates!B9 -> 0.9353 | H83: ='Budget Period #1'!H83+'Budget Period #2'!H83+'Budget Period #3'!H83+'Budget Period #4'!H83+'Budget Period #5'!H83 -> 0
A84: 2.) | B84: Salary, Wages & Fringe (Section staff) | F84: CSS Rate | G84: =Rates!B11 -> 0.6947 | H84: ='Budget Period #1'!H84+'Budget Period #2'!H84+'Budget Period #3'!H84+'Budget Period #4'!H84+'Budget Period #5'!H84 -> 0
A85: 3.) | B85: General and Administrative (formula, Indirect on D & E) | G85: =Rates!B12 -> 0.1872 | H85: ='Budget Period #1'!H85+'Budget Period #2'!H85+'Budget Period #3'!H85+'Budget Period #4'!H85+'Budget Period #5'!H85 -> 0
A86: 4.) | B86: MSA (Materials/Services Acquisition) (formula, Indirect on C & F) | G86: =Rates!B10 -> 0.2631 | H86: ='Budget Period #1'!H86+'Budget Period #2'!H86+'Budget Period #3'!H86+'Budget Period #4'!H86+'Budget Period #5'!H86 -> 0
A87: 5.) | B87: Pass through | G87: =Rates!B15 -> 0.0429 | H87: ='Budget Period #1'!H87+'Budget Period #2'!H87+'Budget Period #3'!H87+'Budget Period #4'!H87+'Budget Period #5'!H87 -> 0
A88: 6.) | B88: Pass through (National Laboratories) | G88: =Rates!B14 -> 0.03 | H88: ='Budget Period #1'!H88+'Budget Period #2'!H88+'Budget Period #3'!H88+'Budget Period #4'!H88+'Budget Period #5'!H88 -> 0
G89: Total Indirect Costs (H) | H89: =SUM(H83:H88) -> 0
B91: I. Total Direct and Indirect Costs
A93: 1.) | B93: Total Direct and Indirect Costs (G+H) | H93: =H79+H89 -> 0

Sheet Quick Lookup (hidden)
B2: FY16 Preliminary v2 | C2: Job Title | D2: Band
B3: Designers & Drafters | C3: Drafter | D3: N2 | F3: Designers_Drafters | H3: Division Staff
C4: Drafter Sr | D4: N3 | F4: Engineers | H4: Section Staff
C5: Designer | D5: N4 | F5: Engineering_Physicists
C6: Designer Sr | D6: N4 | F6: Scientists
C7: Design Drafter | D7: N3 | F7: Technical
C8: Design Drafter Sr | D8: N4
B9: Engineers | C9: Engineering Associate | D9: N4
C10: Engineering Associate Sr | D10: E4
C11: Engineer | D11: E2
C12: Staff Engineer | D12: E4
C13: Senior Engineer | D13: E5
C14: Principal Engineer | D14: E6
C15: Senior Principal Engineer | D15: E7
C16: Guest Engineer | D16: Based on Pay
B17: Engineering Physicists | C17: Engineering Physicist I | D17: E2
C18: Engineering Physicist II | D18: E4
C19: Engineering Physicist III | D19: E4
C20: Sr Engineering Physicist | D20: E6
C21: Engineering Physicist Mgr | D21: E7
B22: Scientists | C22: Research Associate | D22: E1
C23: Associate Scientist | D23: E3
C24: Scientist | D24: E4
C25: Senior Scientist | D25: E6
C26: Distinguished Scientist | D26: E7
C27: Applications Physicist I | D27: E2
C28: Applications Physicist II | D28: E4
C29: Applications Physicist III | D29: E5
C30: Applications Physicist IV | D30: E6
C31: Guest Scientist | D31: Based on Pay
B32: Technical | C32: Technician I | D32: N2
C33: Technician II | D33: N3
C34: Senior Technician | D34: N3
C35: Technical Specialist | D35: N4
C36: Technical Specialist Sr. | D36: N4
C37: Technical Supervisor | D37: E3
B39: SLRate is Time Worked rate and includes shift premiums.
B40: Overtime is at 1.5 x SLRate.
B41: Rates are per hour
B42: Using FY16 Provisional Vacation, OPTO, Fringe, PS, CSS and G&A rates

Sheet SLRs (hidden)
A1: FY16 PROVISIONAL | B1: Band | C1: SLRate | E1: VO | F1: SLR+VO
A2: Exempt | B2: E1 | C2: 30.75 | E2: =C2*(Rates!$B$2+Rates!$B$4) -> 5.38125 | F2: =E2+C2 -> 36.13125
B3: E2 | C3: 36.5 | E3: =C3*(Rates!$B$2+Rates!$B$4) -> 6.3875 | F3: =E3+C3 -> 42.8875
B4: E3 | C4: 44.5 | E4: =C4*(Rates!$B$2+Rates!$B$4) -> 7.7875 | F4: 52.2875
B5: E4 | C5: 51.25 | E5: =C5*(Rates!$B$2+Rates!$B$4) -> 8.96875 | F5: 60.21875
B6: E5 | C6: 60.5 | E6: =C6*(Rates!$B$2+Rates!$B$4) -> 10.5875 | F6: 71.0875
B7: E6 | C7: 69.5 | E7: =C7*(Rates!$B$2+Rates!$B$4) -> 12.1625 | F7: 81.6625
B8: E7 | C8: 87.25 | E8: =C8*(Rates!$B$2+Rates!$B$4) -> 15.26875 | F8: 102.51875
B9: E8 | C9: 114.75 | E9: =C9*(Rates!$B$2+Rates!$B$4) -> 20.08125 | F9: 134.83125
A10: Non-Exempt | B10: N1 | C10: 15.75 | E10: =C10*(Rates!$B$3+Rates!$B$5) -> 3.22875 | F10: 18.97875
B11: N2 | C11: 22.75 | E11: =C11*(Rates!$B$3+Rates!$B$5) -> 4.66375 | F11: =E11+C11 -> 27.41375
B12: N3 | C12: 29.75 | E12: =C12*(Rates!$B$3+Rates!$B$5) -> 6.09875 | F12: 35.84875
B13: N4 | C13: 40 | E13: =C13*(Rates!$B$3+Rates!$B$5) -> 8.2 | F13: 48.2
A14: Union | B14: UDR | C14: 23.75 | F14: =C14 -> 23.75
B15: UFF | C15: 24.5 | F15: =C15 -> 24.5
B16: UMT | C16: 35.5 | F16: 35.5
B17: UMW | C17: 33.25 | F17: 33.25
A18: Extra Bands only available to Guest, Intern, Seasonal, OnCall | B18: ES1 | C18: 12.5 | F18: 12.5
B19: ES2 | C19: 21 | F19: 21
B20: NS1 | C20: 9 | F20: 9
B21: NS2 | C21: 12 | F21: 12

Sheet Rates (hidden)
A1: Rates Type | B1: Rate
A2: Vacation - Monthly | B2: 0.1
A3: Vacation - Weekly | B3: 0.11
A4: OPTO - Monthly | B4: 0.075
A5: OPTO - Weekly | B5: 0.095
A6: Fringe | B6: 0.2975
A7: Fringe - Post Doc | B7: 0.2375
A9: PS | B9: 0.9353 | C9: Effective - Divisional
A10: MSA | B10: 0.2631 | C10: Effective
A11: CSS | B11: 0.6947 | C11: Effective - Non-Divisional
A12: G&A | B12: 0.1872 | C12: Effective
A13: LDRD | B13: 0.0125
A14: Pass-Through - Labs | B14: 0.03
A15: Pass-Through | B15: 0.0429 | C15: Effective
A17: Inflation Period 2 | B17: 0.032
A18: Inflation Period 3 | B18: 0.032
A19: Inflation Period 4 | B19: 0.031
A20: Inflation Period 5 | B20: 0.031
A22: Hours per FTE | B22: 1785
